{"text_format":"1","workbook":"xlsx","n_sheets":2,"sheets":["Analysis Sheet","Instructions"],"not_rendered":{"charts":0,"images":11,"macros":1,"external_links":0,"defined_names":5,"comments":0,"pivot_tables":0},"unopened":[],"bounds":{"document_bytes":16777216,"sheet_cells":100000,"rows_first":2000,"rows_last":500,"rows_between":2000,"halvings":0,"cell_chars":16384,"cell_head_chars":4096},"cells_cut":0,"cells_raw":0,"read":"whole","date_system":"1900"}

{"sheet":"Analysis Sheet","index":0,"n_rows":81,"n_cols":184,"rows_kept":81,"cut":false,"hidden":false,"merged":[]}
[null,null,null,null,null,null,null,null,null,null,null,null,null,null,null,null,null,null,null,null,null,null,null,null,null,null,null,null,null,null,null,null,null,null,null,null,null,null,null,null,null,null,null,null,null,null,null,null,null,null,null,null,null,null,null,null,null,null,null,null,null,null,null,null,null,null,null,null,null,null,null,null,null,null,null,null,null,null,null,null,null,null,null,null,null,null,null,null,null,null,null,null,null,null,null,null,null,null,null,null,null,null,null,null,null,null,null,null,null,null,null,null,null,null,null,null,null,null,null,null,null,null,null,null,null,null,null,null,null,null,null,null,null,null,null,null,null,null,null,null,null,null,null,null,null,null,null,null,null,null,null,null,null,null,null,null,null,null,null,null,null,null,null,null,null,null,null,null,null,null,null,null,null,null,null,null,null,null,null,null,null,null,"Copyright MT2 Enterprises, llc. & Forexearlywarning.com"]
[null,null,null,null,null,null,null,null,null,null,null,null,null,null,null,null,null,null,null,"Currency Pair",null,null,null,null,null,null,null,null,null,null,null,null,null,null,null,null,null,null,null,null,null,"H4",null,null,null,null,null,null,null,null,null,null,null,null,null,null,null,null,null,null,null,null,null,null,null,null,null,null,null,"D1",null,null,null,null,null,null,null,null,null,null,null,null,null,null,null,null,null,null,null,null,null,null,null,null,null,null,null,"W1",0,null,null,null,null,null,null,null,null,null,null,null,null,null,null,null,null,null,null,null,null,null,null,null,null,null,"Multiplier",null,null,null,null,null,null,null,null,null,null,null,null,"H4",null,null,null,null,null,null,null,null,null,null,null,null,null,null,null,"D1",null,null,null,null,null,null,null,null,null,null,null,null,null,null,null,"W1",null,null,null,null,null,null,null,null,null,"Example of USD being Strong",null,null,null,"Example of USD being Weak"]
[null,null,null,null,null,null,null,null,null,null,null,null,null,null,null,null,null,null,null,"EUR-USD",null,null,null,null,null,null,null,null,null,null,null,null,null,null,null,null,null,null,null,null,null,null,null,{"$f":"IF(ISERROR(SEARCH(\"*A*\",AP3,1)),\"\",\"1\")","v":""},null,null,null,null,null,null,null,null,null,null,null,null,null,null,null,null,null,null,null,null,null,null,null,null,null,null,{"$f":"IF(ISERROR(SEARCH(\"*A*\",BR3,1)),\"\",\"1\")","v":""},null,null,null,null,null,null,null,null,null,null,null,null,null,null,null,null,null,null,null,null,null,null,null,null,null,null,null,null,{"$f":"IF(ISERROR(SEARCH(\"*A*\",CT3,1)),\"\",\"1\")","v":""},null,null,null,null,null,null,null,null,null,null,null,null,null,null,null,null,null,null,null,null,null,null,null,null,10000,null,null,null,null,null,"EUR-USD",{"$f":"IF(ISERROR(SEARCH(\"*down*\",EH3,1)),\"\",\"1\")","v":""},null,null,null,null,null,{"$f":"'Analysis Sheet'!$AP$3","v":0},{"$f":"'Analysis Sheet'!$AP$3","v":0},null,null,null,null,null,null,null,"EUR-USD",{"$f":"IF(ISERROR(SEARCH(\"*down*\",EX3,1)),\"\",\"1\")","v":""},null,null,null,null,null,{"$f":"'Analysis Sheet'!$BR$3","v":0},{"$f":"'Analysis Sheet'!$BR$3","v":0},null,null,null,null,null,{"$f":"IF(ISERROR(SEARCH(\"*UP*\",EY3,1)),\"\",\"1 \")","v":""},null,{"$f":"IF(ISERROR(SEARCH(\"*down*\",FN3,1)),\"\",\"1\")","v":""},null,null,null,null,null,"EUR-USD",{"$f":"'Analysis Sheet'!$CT$3","v":0},{"$f":"'Analysis Sheet'!$CT$3","v":0},null,null,null,null,null,null,null,"EUR-USD",null,null,null,"EUR-USD"]
[null,"Angle References","Strength",null,null,null,null,null,null,null,null,null,null,null,null,null,null,null,null,"GBP-USD",null,null,null,null,null,null,null,null,null,null,null,null,null,null,null,null,null,null,null,null,null,null,null,{"$f":"IF(ISERROR(SEARCH(\"*A*\",AP4,1)),\"\",\"1\")","v":""},null,null,null,null,null,null,null,null,null,null,null,null,null,null,null,null,null,null,null,null,null,null,null,null,null,null,{"$f":"IF(ISERROR(SEARCH(\"*A*\",BR4,1)),\"\",\"1\")","v":""},null,null,null,null,null,null,null,null,null,null,null,null,null,null,null,null,null,null,null,null,null,null,null,null,null,null,null,null,{"$f":"IF(ISERROR(SEARCH(\"*A*\",CT4,1)),\"\",\"1\")","v":""},null,null,null,null,null,null,null,null,null,null,null,null,null,null,null,null,null,null,null,null,null,null,null,null,10000,null,null,null,null,null,"GBP-USD",{"$f":"IF(ISERROR(SEARCH(\"*down*\",EH4,1)),\"\",\"1\")","v":""},null,null,null,null,null,{"$f":"'Analysis Sheet'!$AP$4","v":0},{"$f":"'Analysis Sheet'!$AP$4","v":0},null,null,null,null,null,null,null,"GBP-USD",{"$f":"IF(ISERROR(SEARCH(\"*down*\",EX4,1)),\"\",\"1\")","v":""},null,null,null,null,null,{"$f":"'Analysis Sheet'!$BR$4","v":0},{"$f":"'Analysis Sheet'!$BR$4","v":0},null,null,null,null,null,{"$f":"IF(ISERROR(SEARCH(\"*UP*\",EY4,1)),\"\",\"1 \")","v":""},null,{"$f":"IF(ISERROR(SEARCH(\"*down*\",FN4,1)),\"\",\"1\")","v":""},null,null,null,null,null,"GBP-USD",{"$f":"'Analysis Sheet'!$CT$4","v":0},{"$f":"'Analysis Sheet'!$CT$4","v":0},null,null,null,null,null,null,null,"GBP-USD",null,null,null,"GBP-USD"]
[null,null,null,null,null,null,null,null,null,null,null,null,null,null,null,null,null,null,null,"AUD-USD",null,null,null,null,null,null,null,null,null,null,null,null,null,null,null,null,null,null,null,null,null,null,null,"",null,null,null,null,null,null,null,null,null,null,null,null,null,null,null,null,null,null,null,null,null,null,null,null,null,null,"",null,null,null,null,null,null,null,null,null,null,null,null,null,null,null,null,null,null,null,null,null,null,null,null,null,null,null,null,"",null,null,null,null,null,null,null,null,null,null,null,null,null,null,null,null,null,null,null,null,null,null,null,null,10000,null,null,null,null,null,"AUD-USD",{"$f":"IF(ISERROR(SEARCH(\"*down*\",EH5,1)),\"\",\"1\")","v":""},null,null,null,null,null,{"$f":"'Analysis Sheet'!$AP$5","v":0},{"$f":"'Analysis Sheet'!$AP$5","v":0},null,null,null,null,null,null,null,"AUD-USD",{"$f":"IF(ISERROR(SEARCH(\"*down*\",EX5,1)),\"\",\"1\")","v":""},null,null,null,null,null,{"$f":"'Analysis Sheet'!$BR$5","v":0},{"$f":"'Analysis Sheet'!$BR$5","v":0},null,null,null,null,null,{"$f":"IF(ISERROR(SEARCH(\"*UP*\",EY5,1)),\"\",\"1 \")","v":""},null,{"$f":"IF(ISERROR(SEARCH(\"*down*\",FN5,1)),\"\",\"1\")","v":""},null,null,null,null,null,"AUD-USD",{"$f":"'Analysis Sheet'!$CT$5","v":0},{"$f":"'Analysis Sheet'!$CT$5","v":0},null,null,null,null,null,null,null,"AUD-USD",null,null,null,"AUD-USD"]
[null,1010,"U4",null,null,null,null,null,null,null,null,null,null,null,null,null,null,null,null,"NZD-USD",null,null,null,null,null,null,null,null,null,null,null,null,null,null,null,null,null,null,null,null,null,null,null,"",null,null,null,null,null,null,null,null,null,null,null,null,null,null,null,null,null,null,null,null,null,null,null,null,null,null,"",null,null,null,null,null,null,null,null,null,null,null,null,null,null,null,null,null,null,null,null,null,null,null,null,null,null,null,null,"",null,null,null,null,null,null,null,null,null,null,null,null,null,null,null,null,null,null,null,null,null,null,null,null,10000,null,null,null,null,null,"NZD-USD",{"$f":"IF(ISERROR(SEARCH(\"*down*\",EH6,1)),\"\",\"1\")","v":""},null,null,null,null,null,{"$f":"'Analysis Sheet'!$AP$6","v":0},{"$f":"'Analysis Sheet'!$AP$6","v":0},null,null,null,null,null,null,null,"NZD-USD",{"$f":"IF(ISERROR(SEARCH(\"*down*\",EX6,1)),\"\",\"1\")","v":""},null,null,null,null,null,{"$f":"'Analysis Sheet'!$BR$6","v":0},{"$f":"'Analysis Sheet'!$BR$6","v":0},null,null,null,null,null,{"$f":"IF(ISERROR(SEARCH(\"*UP*\",EY6,1)),\"\",\"1 \")","v":""},null,{"$f":"IF(ISERROR(SEARCH(\"*down*\",FN6,1)),\"\",\"1\")","v":""},null,null,null,null,null,"NZD-USD",{"$f":"'Analysis Sheet'!$CT$6","v":0},{"$f":"'Analysis Sheet'!$CT$6","v":0},null,null,null,null,null,null,null,"NZD-USD",null,null,null,"NZD-USD"]
[null,1015,"U4",null,null,null,null,null,null,null,null,null,null,null,null,null,null,null,null,"USD-CHF",null,null,null,null,null,null,null,null,null,null,null,null,null,null,null,null,null,null,null,null,null,null,null,"",null,null,null,null,null,null,null,null,null,null,null,null,null,null,null,null,null,null,null,null,null,null,null,null,null,null,"",null,null,null,null,null,null,null,null,null,null,null,null,null,null,null,null,null,null,null,null,null,null,null,null,null,null,null,null,"",null,null,null,null,null,null,null,null,null,null,null,null,null,null,null,null,null,null,null,null,null,null,null,null,10000,null,null,null,null,null,"USD-CHF",{"$f":"IF(ISERROR(SEARCH(\"*UP*\",EI7,1)),\"\",\"1\")","v":""},null,null,null,null,null,{"$f":"'Analysis Sheet'!$AP$7","v":0},{"$f":"'Analysis Sheet'!$AP$7","v":0},null,null,null,null,null,null,null,"USD-CHF",{"$f":"IF(ISERROR(SEARCH(\"*UP*\",EY7,1)),\"\",\"1\")","v":""},null,null,null,null,null,{"$f":"'Analysis Sheet'!$BR$7","v":0},{"$f":"'Analysis Sheet'!$BR$7","v":0},null,null,null,null,null,{"$f":"IF(ISERROR(SEARCH(\"*DOWN*\",EX7,1)),\"\",\"1 \")","v":""},null,{"$f":"IF(ISERROR(SEARCH(\"*UP*\",FO7,1)),\"\",\"1\")","v":""},null,null,null,null,null,"USD-CHF",{"$f":"'Analysis Sheet'!$CT$7","v":0},{"$f":"'Analysis Sheet'!$CT$7","v":0},null,null,null,null,null,null,null,"USD-CHF",null,null,null,"USD-CHF"]
[null,1020,"U3",null,null,null,null,null,null,null,null,null,null,null,null,null,null,null,null,"USD-JPY",null,null,null,null,null,null,null,null,null,null,null,null,null,null,null,null,null,null,null,null,null,null,null,"",null,null,null,null,null,null,null,null,null,null,null,null,null,null,null,null,null,null,null,null,null,null,null,null,null,null,"",null,null,null,null,null,null,null,null,null,null,null,null,null,null,null,null,null,null,null,null,null,null,null,null,null,null,null,null,"",null,null,null,null,null,null,null,null,null,null,null,null,null,null,null,null,null,null,null,null,null,null,null,null,100,null,null,null,null,null,"USD-JPY",{"$f":"IF(ISERROR(SEARCH(\"*UP*\",EI8,1)),\"\",\"1\")","v":""},null,null,null,null,null,{"$f":"'Analysis Sheet'!$AP$8","v":0},{"$f":"'Analysis Sheet'!$AP$8","v":0},null,null,null,null,null,null,null,"USD-JPY",{"$f":"IF(ISERROR(SEARCH(\"*UP*\",EY8,1)),\"\",\"1\")","v":""},null,null,null,null,null,{"$f":"'Analysis Sheet'!$BR$8","v":0},{"$f":"'Analysis Sheet'!$BR$8","v":0},null,null,null,null,null,{"$f":"IF(ISERROR(SEARCH(\"*DOWN*\",EX8,1)),\"\",\"1 \")","v":""},null,{"$f":"IF(ISERROR(SEARCH(\"*UP*\",FO8,1)),\"\",\"1\")","v":""},null,null,null,null,null,"USD-JPY",{"$f":"'Analysis Sheet'!$CT$8","v":0},{"$f":"'Analysis Sheet'!$CT$8","v":0},null,null,null,null,null,null,null,"USD-JPY",null,null,null,"USD-JPY"]
[null,1025,"U3",null,null,null,null,null,null,null,null,null,null,null,null,null,null,null,null,"USD-CAD",null,null,null,null,null,null,null,null,null,null,null,null,null,null,null,null,null,null,null,null,null,null,null,"",null,null,null,null,null,null,null,null,null,null,null,null,null,null,null,null,null,null,null,null,null,null,null,null,null,null,"",null,null,null,null,null,null,null,null,null,null,null,null,null,null,null,null,null,null,null,null,null,null,null,null,null,null,null,null,"",null,null,null,null,null,null,null,null,null,null,null,null,null,null,null,null,null,null,null,null,null,null,null,null,10000,null,null,null,null,null,"USD-CAD",{"$f":"IF(ISERROR(SEARCH(\"*UP*\",EI9,1)),\"\",\"1\")","v":""},null,null,null,null,null,{"$f":"'Analysis Sheet'!$AP$9","v":0},{"$f":"'Analysis Sheet'!$AP$9","v":0},null,null,null,null,null,null,null,"USD-CAD",{"$f":"IF(ISERROR(SEARCH(\"*UP*\",EY9,1)),\"\",\"1\")","v":""},null,null,null,null,null,{"$f":"'Analysis Sheet'!$BR$9","v":0},{"$f":"'Analysis Sheet'!$BR$9","v":0},null,null,null,null,null,{"$f":"IF(ISERROR(SEARCH(\"*DOWN*\",EX9,1)),\"\",\"1 \")","v":""},null,{"$f":"IF(ISERROR(SEARCH(\"*UP*\",FO9,1)),\"\",\"1\")","v":""},null,null,null,null,null,"USD-CAD",{"$f":"'Analysis Sheet'!$CT$9","v":0},{"$f":"'Analysis Sheet'!$CT$9","v":0},null,null,null,null,null,null,null,"USD-CAD",null,null,null,"USD-CAD"]
[null,1030,"U3",null,null,null,null,null,null,null,null,null,null,null,null,null,null,null,null,"EUR-CHF",null,null,null,null,null,null,null,null,null,null,null,null,null,null,null,null,null,null,null,null,null,null,null,"",null,null,null,null,null,null,null,null,null,null,null,null,null,null,null,null,null,null,null,null,null,null,null,null,null,null,"",null,null,null,null,null,null,null,null,null,null,null,null,null,null,null,null,null,null,null,null,null,null,null,null,null,null,null,null,"",null,null,null,null,null,null,null,null,null,null,null,null,null,null,null,null,null,null,null,null,null,null,null,null,10000]
[null,1515,"U4",null,null,null,null,null,null,null,null,null,null,null,null,null,null,null,null,"GBP-CHF",null,null,null,null,null,null,null,null,null,null,null,null,null,null,null,null,null,null,null,null,null,null,null,"",null,null,null,null,null,null,null,null,null,null,null,null,null,null,null,null,null,null,null,null,null,null,null,null,null,null,"",null,null,null,null,null,null,null,null,null,null,null,null,null,null,null,null,null,null,null,null,null,null,null,null,null,null,null,null,"",null,null,null,null,null,null,null,null,null,null,null,null,null,null,null,null,null,null,null,null,null,null,null,null,10000,null,null,null,null,null,null,null,null,null,null,null,null,"H4",null,null,null,null,null,null,null,null,null,null,null,null,null,null,null,"D1",null,null,null,null,null,null,null,null,null,null,null,null,null,null,null,"W1",null,null,null,null,null,null,null,null,null,"Example of CHF being Strong",null,null,null,"Example of CHF being Weak"]
[null,1520,"U4",null,null,null,null,null,null,null,null,null,null,null,null,null,null,null,null,"AUD-CHF",null,null,null,null,null,null,null,null,null,null,null,null,null,null,null,null,null,null,null,null,null,null,null,"",null,null,null,null,null,null,null,null,null,null,null,null,null,null,null,null,null,null,null,null,null,null,null,null,null,null,"",null,null,null,null,null,null,null,null,null,null,null,null,null,null,null,null,null,null,null,null,null,null,null,null,null,null,null,null,"",null,null,null,null,null,null,null,null,null,null,null,null,null,null,null,null,null,null,null,null,null,null,null,null,10000,null,null,null,null,null,"USD-CHF",{"$f":"IF(ISERROR(SEARCH(\"*down*\",EH12,1)),\"\",\"1\")","v":""},null,null,null,null,null,{"$f":"'Analysis Sheet'!$AP$7","v":0},{"$f":"'Analysis Sheet'!$AP$7","v":0},null,null,null,null,null,null,null,"USD-CHF",{"$f":"IF(ISERROR(SEARCH(\"*down*\",EX12,1)),\"\",\"1\")","v":""},null,null,null,null,null,{"$f":"'Analysis Sheet'!$BR$7","v":0},{"$f":"'Analysis Sheet'!$BR$7","v":0},null,null,null,null,null,{"$f":"IF(ISERROR(SEARCH(\"*UP*\",EY12,1)),\"\",\"1 \")","v":""},null,{"$f":"IF(ISERROR(SEARCH(\"*down*\",FN12,1)),\"\",\"1\")","v":""},null,null,null,null,null,"USD-CHF",{"$f":"'Analysis Sheet'!$CT$7","v":0},{"$f":"'Analysis Sheet'!$CT$7","v":0},null,null,null,null,null,null,null,"USD-CHF",null,null,null,"USD-CHF"]
[null,1525,"U3",null,null,null,null,null,null,null,null,null,null,null,null,null,null,null,null,"NZD-CHF",null,null,null,null,null,null,null,null,null,null,null,null,null,null,null,null,null,null,null,null,null,null,null,"",null,null,null,null,null,null,null,null,null,null,null,null,null,null,null,null,null,null,null,null,null,null,null,null,null,null,"",null,null,null,null,null,null,null,null,null,null,null,null,null,null,null,null,null,null,null,null,null,null,null,null,null,null,null,null,"",null,null,null,null,null,null,null,null,null,null,null,null,null,null,null,null,null,null,null,null,null,null,null,null,10000,null,null,null,null,null,"EUR-CHF","",null,null,null,null,null,{"$f":"'Analysis Sheet'!$AP$10","v":0},{"$f":"'Analysis Sheet'!$AP$10","v":0},null,null,null,null,null,null,null,"EUR-CHF","",null,null,null,null,null,{"$f":"'Analysis Sheet'!$BR$10","v":0},{"$f":"'Analysis Sheet'!$BR$10","v":0},null,null,null,null,null,"",null,"",null,null,null,null,null,"EUR-CHF",{"$f":"'Analysis Sheet'!$CT$10","v":0},{"$f":"'Analysis Sheet'!$CT$10","v":0},null,null,null,null,null,null,null,"EUR-CHF",null,null,null,"EUR-CHF"]
[null,1530,"U3",null,null,null,null,null,null,null,null,null,null,null,null,null,null,null,null,"CAD-CHF",null,null,null,null,null,null,null,null,null,null,null,null,null,null,null,null,null,null,null,null,null,null,null,"",null,null,null,null,null,null,null,null,null,null,null,null,null,null,null,null,null,null,null,null,null,null,null,null,null,null,"",null,null,null,null,null,null,null,null,null,null,null,null,null,null,null,null,null,null,null,null,null,null,null,null,null,null,null,null,"",null,null,null,null,null,null,null,null,null,null,null,null,null,null,null,null,null,null,null,null,null,null,null,null,10000,null,null,null,null,null,"GBP-CHF","",null,null,null,null,null,{"$f":"'Analysis Sheet'!$AP$11","v":0},{"$f":"'Analysis Sheet'!$AP$11","v":0},null,null,null,null,null,null,null,"GBP-CHF","",null,null,null,null,null,{"$f":"'Analysis Sheet'!$BR$11","v":0},{"$f":"'Analysis Sheet'!$BR$11","v":0},null,null,null,null,null,"",null,"",null,null,null,null,null,"GBP-CHF",{"$f":"'Analysis Sheet'!$CT$11","v":0},{"$f":"'Analysis Sheet'!$CT$11","v":0},null,null,null,null,null,null,null,"GBP-CHF",null,null,null,"GBP-CHF"]
[null,2020,"U3",null,null,null,null,null,null,null,null,null,null,null,null,null,null,null,null,"EUR-GBP",null,null,null,null,null,null,null,null,null,null,null,null,null,null,null,null,null,null,null,null,null,null,null,"",null,null,null,null,null,null,null,null,null,null,null,null,null,null,null,null,null,null,null,null,null,null,null,null,null,null,"",null,null,null,null,null,null,null,null,null,null,null,null,null,null,null,null,null,null,null,null,null,null,null,null,null,null,null,null,"",null,null,null,null,null,null,null,null,null,null,null,null,null,null,null,null,null,null,null,null,null,null,null,null,10000,null,null,null,null,null,"AUD-CHF","",null,null,null,null,null,{"$f":"'Analysis Sheet'!$AP$12","v":0},{"$f":"'Analysis Sheet'!$AP$12","v":0},null,null,null,null,null,null,null,"AUD-CHF","",null,null,null,null,null,{"$f":"'Analysis Sheet'!$BR$12","v":0},{"$f":"'Analysis Sheet'!$BR$12","v":0},null,null,null,null,null,"",null,"",null,null,null,null,null,"AUD-CHF",{"$f":"'Analysis Sheet'!$CT$12","v":0},{"$f":"'Analysis Sheet'!$CT$12","v":0},null,null,null,null,null,null,null,"AUD-CHF",null,null,null,"AUD-CHF"]
[null,2025,"U3",null,null,null,null,null,null,null,null,null,null,null,null,null,null,null,null,"EUR-CAD",null,null,null,null,null,null,null,null,null,null,null,null,null,null,null,null,null,null,null,null,null,null,null,"",null,null,null,null,null,null,null,null,null,null,null,null,null,null,null,null,null,null,null,null,null,null,null,null,null,null,"",null,null,null,null,null,null,null,null,null,null,null,null,null,null,null,null,null,null,null,null,null,null,null,null,null,null,null,null,"",null,null,null,null,null,null,null,null,null,null,null,null,null,null,null,null,null,null,null,null,null,null,null,null,10000,null,null,null,null,null,"NZD-CHF","",null,null,null,null,null,{"$f":"'Analysis Sheet'!$AP$13","v":0},{"$f":"'Analysis Sheet'!$AP$13","v":0},null,null,null,null,null,null,null,"NZD-CHF","",null,null,null,null,null,{"$f":"'Analysis Sheet'!$BR$13","v":0},{"$f":"'Analysis Sheet'!$BR$13","v":0},null,null,null,null,null,"",null,"",null,null,null,null,null,"NZD-CHF",{"$f":"'Analysis Sheet'!$CT$13","v":0},{"$f":"'Analysis Sheet'!$CT$13","v":0},null,null,null,null,null,null,null,"NZD-CHF",null,null,null,"NZD-CHF"]
[null,2030,"U2",null,null,null,null,null,null,null,null,null,null,null,null,null,null,null,null,"EUR-AUD",null,null,null,null,null,null,null,null,null,null,null,null,null,null,null,null,null,null,null,null,null,null,null,"",null,null,null,null,null,null,null,null,null,null,null,null,null,null,null,null,null,null,null,null,null,null,null,null,null,null,"",null,null,null,null,null,null,null,null,null,null,null,null,null,null,null,null,null,null,null,null,null,null,null,null,null,null,null,null,"",null,null,null,null,null,null,null,null,null,null,null,null,null,null,null,null,null,null,null,null,null,null,null,null,10000,null,null,null,null,null,"CAD-CHF","",null,null,null,null,null,{"$f":"'Analysis Sheet'!$AP$14","v":0},{"$f":"'Analysis Sheet'!$AP$14","v":0},null,null,null,null,null,null,null,"CAD-CHF","",null,null,null,null,null,{"$f":"'Analysis Sheet'!$BR$14","v":0},{"$f":"'Analysis Sheet'!$BR$14","v":0},null,null,null,null,null,"",null,"",null,null,null,null,null,"CAD-CHF",{"$f":"'Analysis Sheet'!$CT$14","v":0},{"$f":"'Analysis Sheet'!$CT$14","v":0},null,null,null,null,null,null,null,"CAD-CHF",null,null,null,"CAD-CHF"]
[null,2525,"U2",null,null,null,null,null,null,null,null,null,null,null,null,null,null,null,null,"EUR-NZD",null,null,null,null,null,null,null,null,null,null,null,null,null,null,null,null,null,null,null,null,null,null,null,"",null,null,null,null,null,null,null,null,null,null,null,null,null,null,null,null,null,null,null,null,null,null,null,null,null,null,"",null,null,null,null,null,null,null,null,null,null,null,null,null,null,null,null,null,null,null,null,null,null,null,null,null,null,null,null,"",null,null,null,null,null,null,null,null,null,null,null,null,null,null,null,null,null,null,null,null,null,null,null,null,10000,null,null,null,null,null,"CHF-JPY",{"$f":"IF(ISERROR(SEARCH(\"*UP*\",EI18,1)),\"\",\"1\")","v":""},null,null,null,null,null,{"$f":"'Analysis Sheet'!$AP$22","v":0},{"$f":"'Analysis Sheet'!$AP$22","v":0},null,null,null,null,null,null,null,"CHF-JPY",{"$f":"IF(ISERROR(SEARCH(\"*UP*\",EY18,1)),\"\",\"1\")","v":""},null,null,null,null,null,{"$f":"'Analysis Sheet'!$BR$22","v":0},{"$f":"'Analysis Sheet'!$BR$22","v":0},null,null,null,null,null,{"$f":"IF(ISERROR(SEARCH(\"*DOWN*\",EX18,1)),\"\",\"1 \")","v":""},null,{"$f":"IF(ISERROR(SEARCH(\"*UP*\",FO18,1)),\"\",\"1\")","v":""},null,null,null,null,null,"CHF-JPY",{"$f":"'Analysis Sheet'!$CT$22","v":0},{"$f":"'Analysis Sheet'!$CT$22","v":0},null,null,null,null,null,null,null,"CHF-JPY",null,null,null,"CHF-JPY"]
[null,2530,"U1",null,null,null,null,null,null,null,null,null,null,null,null,null,null,null,null,"EUR-JPY",null,null,null,null,null,null,null,null,null,null,null,null,null,null,null,null,null,null,null,null,null,null,null,"",null,null,null,null,null,null,null,null,null,null,null,null,null,null,null,null,null,null,null,null,null,null,null,null,null,null,"",null,null,null,null,null,null,null,null,null,null,null,null,null,null,null,null,null,null,null,null,null,null,null,null,null,null,null,null,"",null,null,null,null,null,null,null,null,null,null,null,null,null,null,null,null,null,null,null,null,null,null,null,null,100]
[null,3030,"NT",null,null,null,null,null,null,null,null,null,null,null,null,null,null,null,null,"GBP-JPY",null,null,null,null,null,null,null,null,null,null,null,null,null,null,null,null,null,null,null,null,null,null,null,"",null,null,null,null,null,null,null,null,null,null,null,null,null,null,null,null,null,null,null,null,null,null,null,null,null,null,"",null,null,null,null,null,null,null,null,null,null,null,null,null,null,null,null,null,null,null,null,null,null,null,null,null,null,null,null,"",null,null,null,null,null,null,null,null,null,null,null,null,null,null,null,null,null,null,null,null,null,null,null,null,100,null,null,null,null,null,null,null,null,null,null,null,null,"H4",null,null,null,null,null,null,null,null,null,null,null,null,null,null,null,"D1",null,null,null,null,null,null,null,null,null,null,null,null,null,null,null,"W1",null,null,null,null,null,null,null,null,null,"Example of Euro being Strong",null,null,null,"Example of Euro being Weak"]
[null,3530,"D1",null,null,null,null,null,null,null,null,null,null,null,null,null,null,null,null,"AUD-JPY",null,null,null,null,null,null,null,null,null,null,null,null,null,null,null,null,null,null,null,null,null,null,null,"",null,null,null,null,null,null,null,null,null,null,null,null,null,null,null,null,null,null,null,null,null,null,null,null,null,null,"",null,null,null,null,null,null,null,null,null,null,null,null,null,null,null,null,null,null,null,null,null,null,null,null,null,null,null,null,"",null,null,null,null,null,null,null,null,null,null,null,null,null,null,null,null,null,null,null,null,null,null,null,null,100,null,null,null,null,null,"EUR-USD",{"$f":"IF(ISERROR(SEARCH(\"*UP*\",EI21,1)),\"\",\"1\")","v":""},null,null,null,null,null,{"$f":"'Analysis Sheet'!$AP$3","v":0},{"$f":"'Analysis Sheet'!$AP$3","v":0},null,null,null,null,null,null,null,"EUR-USD",{"$f":"IF(ISERROR(SEARCH(\"*UP*\",EY21,1)),\"\",\"1\")","v":""},null,null,null,null,null,{"$f":"'Analysis Sheet'!$BR$3","v":0},{"$f":"'Analysis Sheet'!$BR$3","v":0},null,null,null,null,null,{"$f":"IF(ISERROR(SEARCH(\"*DOWN*\",EX21,1)),\"\",\"1 \")","v":""},null,{"$f":"IF(ISERROR(SEARCH(\"*UP*\",FO21,1)),\"\",\"1\")","v":""},null,null,null,null,null,"EUR-USD",{"$f":"'Analysis Sheet'!$CT$3","v":0},{"$f":"'Analysis Sheet'!$CT$3","v":0},null,null,null,null,null,null,null,"EUR-USD",null,null,null,"EUR-USD"]
[null,3535,"D2",null,null,null,null,null,null,null,null,null,null,null,null,null,null,null,null,"CHF-JPY",null,null,null,null,null,null,null,null,null,null,null,null,null,null,null,null,null,null,null,null,null,null,null,"",null,null,null,null,null,null,null,null,null,null,null,null,null,null,null,null,null,null,null,null,null,null,null,null,null,null,"",null,null,null,null,null,null,null,null,null,null,null,null,null,null,null,null,null,null,null,null,null,null,null,null,null,null,null,null,"",null,null,null,null,null,null,null,null,null,null,null,null,null,null,null,null,null,null,null,null,null,null,null,null,100,null,null,null,null,null,"EUR-CHF","",null,null,null,null,null,{"$f":"'Analysis Sheet'!$AP$10","v":0},{"$f":"'Analysis Sheet'!$AP$10","v":0},null,null,null,null,null,null,null,"EUR-CHF","",null,null,null,null,null,{"$f":"'Analysis Sheet'!$BR$10","v":0},{"$f":"'Analysis Sheet'!$BR$10","v":0},null,null,null,null,null,"",null,"",null,null,null,null,null,"EUR-CHF",{"$f":"'Analysis Sheet'!$CT$10","v":0},{"$f":"'Analysis Sheet'!$CT$10","v":0},null,null,null,null,null,null,null,"EUR-CHF",null,null,null,"EUR-CHF"]
[null,4030,"D2",null,null,null,null,null,null,null,null,null,null,null,null,null,null,null,null,"NZD-JPY",null,null,null,null,null,null,null,null,null,null,null,null,null,null,null,null,null,null,null,null,null,null,null,"",null,null,null,null,null,null,null,null,null,null,null,null,null,null,null,null,null,null,null,null,null,null,null,null,null,null,"",null,null,null,null,null,null,null,null,null,null,null,null,null,null,null,null,null,null,null,null,null,null,null,null,null,null,null,null,"",null,null,null,null,null,null,null,null,null,null,null,null,null,null,null,null,null,null,null,null,null,null,null,null,100,null,null,null,null,null,"EUR-GBP","",null,null,null,null,null,{"$f":"'Analysis Sheet'!$AP$15","v":0},{"$f":"'Analysis Sheet'!$AP$15","v":0},null,null,null,null,null,null,null,"EUR-GBP","",null,null,null,null,null,{"$f":"'Analysis Sheet'!$BR$15","v":0},{"$f":"'Analysis Sheet'!$BR$15","v":0},null,null,null,null,null,"",null,"",null,null,null,null,null,"EUR-GBP",{"$f":"'Analysis Sheet'!$CT$15","v":0},{"$f":"'Analysis Sheet'!$CT$15","v":0},null,null,null,null,null,null,null,"EUR-GBP",null,null,null,"EUR-GBP"]
[null,4035,"D3",null,null,null,null,null,null,null,null,null,null,null,null,null,null,null,null,"CAD-JPY",null,null,null,null,null,null,null,null,null,null,null,null,null,null,null,null,null,null,null,null,null,null,null,"",null,null,null,null,null,null,null,null,null,null,null,null,null,null,null,null,null,null,null,null,null,null,null,null,null,null,"",null,null,null,null,null,null,null,null,null,null,null,null,null,null,null,null,null,null,null,null,null,null,null,null,null,null,null,null,"",null,null,null,null,null,null,null,null,null,null,null,null,null,null,null,null,null,null,null,null,null,null,null,null,100,null,null,null,null,null,"EUR-JPY","",null,null,null,null,null,{"$f":"'Analysis Sheet'!$AP$19","v":0},{"$f":"'Analysis Sheet'!$AP$19","v":0},null,null,null,null,null,null,null,"EUR-JPY","",null,null,null,null,null,{"$f":"'Analysis Sheet'!$BR$19","v":0},{"$f":"'Analysis Sheet'!$BR$19","v":0},null,null,null,null,null,"",null,"",null,null,null,null,null,"EUR-JPY",{"$f":"'Analysis Sheet'!$CT$19","v":0},{"$f":"'Analysis Sheet'!$CT$19","v":0},null,null,null,null,null,null,null,"EUR-JPY",null,null,null,"EUR-JPY"]
[null,4040,"D3",null,null,null,null,null,null,null,null,null,null,null,null,null,null,null,null,"GBP-AUD",null,null,null,null,null,null,null,null,null,null,null,null,null,null,null,null,null,null,null,null,null,null,null,"",null,null,null,null,null,null,null,null,null,null,null,null,null,null,null,null,null,null,null,null,null,null,null,null,null,null,"",null,null,null,null,null,null,null,null,null,null,null,null,null,null,null,null,null,null,null,null,null,null,null,null,null,null,null,null,"",null,null,null,null,null,null,null,null,null,null,null,null,null,null,null,null,null,null,null,null,null,null,null,null,10000,null,null,null,null,null,"EUR-NZD","",null,null,null,null,null,{"$f":"'Analysis Sheet'!$AP$18","v":0},{"$f":"'Analysis Sheet'!$AP$18","v":0},null,null,null,null,null,null,null,"EUR-NZD","",null,null,null,null,null,{"$f":"'Analysis Sheet'!$BR$18","v":0},{"$f":"'Analysis Sheet'!$BR$18","v":0},null,null,null,null,null,"",null,"",null,null,null,null,null,"EUR-NZD",{"$f":"'Analysis Sheet'!$CT$18","v":0},{"$f":"'Analysis Sheet'!$CT$18","v":0},null,null,null,null,null,null,null,"EUR-NZD",null,null,null,"EUR-NZD"]
[null,4530,"D3",null,null,null,null,null,null,null,null,null,null,null,null,null,null,null,null,"GBP-CAD",null,null,null,null,null,null,null,null,null,null,null,null,null,null,null,null,null,null,null,null,null,null,null,"",null,null,null,null,null,null,null,null,null,null,null,null,null,null,null,null,null,null,null,null,null,null,null,null,null,null,"",null,null,null,null,null,null,null,null,null,null,null,null,null,null,null,null,null,null,null,null,null,null,null,null,null,null,null,null,"",null,null,null,null,null,null,null,null,null,null,null,null,null,null,null,null,null,null,null,null,null,null,null,null,10000,null,null,null,null,null,"EUR-CAD","",null,null,null,null,null,{"$f":"'Analysis Sheet'!$AP$16","v":0},{"$f":"'Analysis Sheet'!$AP$16","v":0},null,null,null,null,null,null,null,"EUR-CAD","",null,null,null,null,null,{"$f":"'Analysis Sheet'!$BR$16","v":0},{"$f":"'Analysis Sheet'!$BR$16","v":0},null,null,null,null,null,"",null,"",null,null,null,null,null,"EUR-CAD",{"$f":"'Analysis Sheet'!$CT$16","v":0},{"$f":"'Analysis Sheet'!$CT$16","v":0},null,null,null,null,null,null,null,"EUR-CAD",null,null,null,"EUR-CAD"]
[null,4535,"D3",null,null,null,null,null,null,null,null,null,null,null,null,null,null,null,null,"GBP-NZD",null,null,null,null,null,null,null,null,null,null,null,null,null,null,null,null,null,null,null,null,null,null,null,"",null,null,null,null,null,null,null,null,null,null,null,null,null,null,null,null,null,null,null,null,null,null,null,null,null,null,"",null,null,null,null,null,null,null,null,null,null,null,null,null,null,null,null,null,null,null,null,null,null,null,null,null,null,null,null,"",null,null,null,null,null,null,null,null,null,null,null,null,null,null,null,null,null,null,null,null,null,null,null,null,10000,null,null,null,null,null,"EUR-AUD","",null,null,null,null,null,{"$f":"'Analysis Sheet'!$AP$17","v":0},{"$f":"'Analysis Sheet'!$AP$17","v":0},null,null,null,null,null,null,null,"EUR-AUD","",null,null,null,null,null,{"$f":"'Analysis Sheet'!$BR$17","v":0},{"$f":"'Analysis Sheet'!$BR$17","v":0},null,null,null,null,null,"",null,"",null,null,null,null,null,"EUR-AUD",{"$f":"'Analysis Sheet'!$CT$17","v":0},{"$f":"'Analysis Sheet'!$CT$17","v":0},null,null,null,null,null,null,null,"EUR-AUD",null,null,null,"EUR-AUD"]
[null,4540,"D4",null,null,null,null,null,null,null,null,null,null,null,null,null,null,null,null,"AUD-CAD",null,null,null,null,null,null,null,null,null,null,null,null,null,null,null,null,null,null,null,null,null,null,null,"",null,null,null,null,null,null,null,null,null,null,null,null,null,null,null,null,null,null,null,null,null,null,null,null,null,null,"",null,null,null,null,null,null,null,null,null,null,null,null,null,null,null,null,null,null,null,null,null,null,null,null,null,null,null,null,"",null,null,null,null,null,null,null,null,null,null,null,null,null,null,null,null,null,null,null,null,null,null,null,null,10000]
[null,4545,"D4",null,null,null,null,null,null,null,null,null,null,null,null,null,null,null,null,"AUD-NZD",null,null,null,null,null,null,null,null,null,null,null,null,null,null,null,null,null,null,null,null,null,null,null,"",null,null,null,null,null,null,null,null,null,null,null,null,null,null,null,null,null,null,null,null,null,null,null,null,null,null,"",null,null,null,null,null,null,null,null,null,null,null,null,null,null,null,null,null,null,null,null,null,null,null,null,null,null,null,null,"",null,null,null,null,null,null,null,null,null,null,null,null,null,null,null,null,null,null,null,null,null,null,null,null,10000,null,null,null,null,null,null,null,null,null,null,null,null,"H4",null,null,null,null,null,null,null,null,null,null,null,null,null,null,null,"D1",null,null,null,null,null,null,null,null,null,null,null,null,null,null,null,"W1",null,null,null,null,null,null,null,null,null,"Example of JPY being Strong",null,null,null,"Example of JPY being Weak"]
[null,5030,"D3",null,null,null,null,null,null,null,null,null,null,null,null,null,null,null,null,"NZD-CAD",null,null,null,null,null,null,null,null,null,null,null,null,null,null,null,null,null,null,null,null,null,null,null,"",null,null,null,null,null,null,null,null,null,null,null,null,null,null,null,null,null,null,null,null,null,null,null,null,null,null,"",null,null,null,null,null,null,null,null,null,null,null,null,null,null,null,null,null,null,null,null,null,null,null,null,null,null,null,null,"",null,null,null,null,null,null,null,null,null,null,null,null,null,null,null,null,null,null,null,null,null,null,null,null,10000,null,null,null,null,null,"USD-JPY",{"$f":"IF(ISERROR(SEARCH(\"*down*\",EH30,1)),\"\",\"1\")","v":""},null,null,null,null,null,{"$f":"'Analysis Sheet'!$AP$8","v":0},{"$f":"'Analysis Sheet'!$AP$8","v":0},null,null,null,null,null,null,null,"USD-JPY",{"$f":"IF(ISERROR(SEARCH(\"*down*\",EX30,1)),\"\",\"1\")","v":""},null,null,null,null,null,{"$f":"'Analysis Sheet'!$BR$8","v":0},{"$f":"'Analysis Sheet'!$BR$8","v":0},null,null,null,null,null,{"$f":"IF(ISERROR(SEARCH(\"*UP*\",EY30,1)),\"\",\"1 \")","v":""},null,{"$f":"IF(ISERROR(SEARCH(\"*down*\",FN30,1)),\"\",\"1\")","v":""},null,null,null,null,null,"USD-JPY",{"$f":"'Analysis Sheet'!$CT$8","v":0},{"$f":"'Analysis Sheet'!$CT$8","v":0},null,null,null,null,null,null,null,"USD-JPY",null,null,null,"USD-JPY"]
[null,null,null,null,null,null,null,null,null,null,null,null,null,null,null,null,null,null,null,null,null,null,null,null,null,null,null,null,null,null,null,null,null,null,null,null,null,null,null,null,null,null,null,null,null,null,null,null,null,null,null,null,null,null,null,null,null,null,null,null,null,null,null,null,null,null,null,null,null,null,null,null,null,null,null,null,null,null,null,null,null,null,null,null,null,null,null,null,null,null,null,null,null,null,null,null,null,null,null,null,null,null,null,null,null,null,null,null,null,null,null,null,null,null,null,null,null,null,null,null,null,null,null,null,null,null,null,null,null,null,"EUR-JPY","",null,null,null,null,null,{"$f":"'Analysis Sheet'!$AP$19","v":0},{"$f":"'Analysis Sheet'!$AP$19","v":0},null,null,null,null,null,{"$f":"IF(ISERROR(SEARCH(\"*UP*\",EI31,1)),\"\",\"1 \")","v":""},null,"EUR-JPY","",null,null,null,null,null,{"$f":"'Analysis Sheet'!$BR$19","v":0},{"$f":"'Analysis Sheet'!$BR$19","v":0},null,null,null,null,null,"",null,"",null,null,null,null,null,"EUR-JPY",{"$f":"'Analysis Sheet'!$CT$19","v":0},{"$f":"'Analysis Sheet'!$CT$19","v":0},null,null,null,null,null,{"$f":"IF(ISERROR(SEARCH(\"*UP*\",FO31,1)),\"\",\"1 \")","v":""},null,"EUR-JPY",null,null,null,"EUR-JPY"]
[null,null,null,null,null,null,null,null,null,null,null,null,null,null,null,null,null,null,null,null,null,null,null,null,null,null,null,null,null,null,null,null,null,null,null,null,null,null,null,null,null,null,null,null,null,null,null,null,null,null,null,null,null,null,null,null,null,null,null,null,null,null,null,null,null,null,null,null,null,null,null,null,null,null,null,null,null,null,null,null,null,null,null,null,null,null,null,null,null,null,null,null,null,null,null,null,null,null,null,null,null,null,null,null,null,null,null,null,null,null,null,null,null,null,null,null,null,null,null,null,null,null,null,null,null,null,null,null,null,null,"GBP-JPY","",null,null,null,null,null,{"$f":"'Analysis Sheet'!$AP$20","v":0},{"$f":"'Analysis Sheet'!$AP$20","v":0},null,null,null,null,null,"",null,"GBP-JPY","",null,null,null,null,null,{"$f":"'Analysis Sheet'!$BR$20","v":0},{"$f":"'Analysis Sheet'!$BR$20","v":0},null,null,null,null,null,"",null,"",null,null,null,null,null,"GBP-JPY",{"$f":"'Analysis Sheet'!$CT$20","v":0},{"$f":"'Analysis Sheet'!$CT$20","v":0},null,null,null,null,null,"",null,"GBP-JPY",null,null,null,"GBP-JPY"]
[null,null,null,null,null,null,null,null,null,null,null,null,null,null,null,null,null,null,null,null,null,null,null,null,null,null,null,null,null,null,null,null,null,null,null,null,null,null,null,null,null,null,null,null,null,null,null,null,null,null,null,null,null,null,null,null,null,null,null,null,null,null,null,null,null,null,null,null,null,null,null,null,null,null,null,null,null,null,null,null,null,null,null,null,null,null,null,null,null,null,null,null,null,null,null,null,null,null,null,null,null,null,null,null,null,null,null,null,null,null,null,null,null,null,null,null,null,null,null,null,null,null,null,null,null,null,null,null,null,null,"AUD-JPY","",null,null,null,null,null,{"$f":"'Analysis Sheet'!$AP$21","v":0},{"$f":"'Analysis Sheet'!$AP$21","v":0},null,null,null,null,null,"",null,"AUD-JPY","",null,null,null,null,null,{"$f":"'Analysis Sheet'!$BR$21","v":0},{"$f":"'Analysis Sheet'!$BR$21","v":0},null,null,null,null,null,"",null,"",null,null,null,null,null,"AUD-JPY",{"$f":"'Analysis Sheet'!$CT$21","v":0},{"$f":"'Analysis Sheet'!$CT$21","v":0},null,null,null,null,null,"",null,"AUD-JPY",null,null,null,"AUD-JPY"]
[null,null,null,null,null,null,null,null,null,null,null,null,null,null,null,null,null,null,null,null,null,null,null,null,null,null,null,null,null,null,null,null,null,null,null,null,null,null,null,null,null,null,null,null,null,null,null,null,null,null,null,null,null,null,null,null,null,null,null,null,null,null,null,null,null,null,null,null,null,null,null,null,null,null,null,null,null,null,null,null,null,null,null,null,null,null,null,null,null,null,null,null,null,null,null,null,null,null,null,null,null,null,null,null,null,null,null,null,null,null,null,null,null,null,null,null,null,null,null,null,null,null,null,null,null,null,null,null,null,null,"CHF-JPY","",null,null,null,null,null,{"$f":"'Analysis Sheet'!$AP$22","v":0},{"$f":"'Analysis Sheet'!$AP$22","v":0},null,null,null,null,null,"",null,"CHF-JPY","",null,null,null,null,null,{"$f":"'Analysis Sheet'!$BR$22","v":0},{"$f":"'Analysis Sheet'!$BR$22","v":0},null,null,null,null,null,"",null,"",null,null,null,null,null,"CHF-JPY",{"$f":"'Analysis Sheet'!$CT$22","v":0},{"$f":"'Analysis Sheet'!$CT$22","v":0},null,null,null,null,null,"",null,"CHF-JPY",null,null,null,"CHF-JPY"]
[null,null,null,null,null,null,null,null,null,null,null,null,null,null,null,null,null,null,null,null,null,null,null,null,null,null,null,null,null,null,null,null,null,null,null,null,null,null,null,null,null,null,null,null,null,null,null,null,null,null,null,null,null,null,null,null,null,null,null,null,null,null,null,null,null,null,null,null,null,null,null,null,null,null,null,null,null,null,null,null,null,null,null,null,null,null,null,null,null,null,null,null,null,null,null,null,null,null,null,null,null,null,null,null,null,null,null,null,null,null,null,null,null,null,null,null,null,null,null,null,null,null,null,null,null,null,null,null,null,null,"NZD-JPY","",null,null,null,null,null,{"$f":"'Analysis Sheet'!$AP$23","v":0},{"$f":"'Analysis Sheet'!$AP$23","v":0},null,null,null,null,null,"",null,"NZD-JPY","",null,null,null,null,null,{"$f":"'Analysis Sheet'!$BR$23","v":0},{"$f":"'Analysis Sheet'!$BR$23","v":0},null,null,null,null,null,"",null,"",null,null,null,null,null,"NZD-JPY",{"$f":"'Analysis Sheet'!$CT$23","v":0},{"$f":"'Analysis Sheet'!$CT$23","v":0},null,null,null,null,null,"",null,"NZD-JPY",null,null,null,"NZD-JPY"]
[null,5035,"D3",null,null,null,null,null,null,null,null,null,null,null,null,null,null,null,null,null,null,null,null,null,null,null,null,null,null,null,null,null,null,null,null,null,null,null,null,null,null,null,null,null,null,null,null,null,null,null,null,null,null,null,null,null,null,null,null,null,null,null,null,null,null,null,null,null,null,null,null,null,null,null,null,null,null,null,null,null,null,null,null,null,null,null,null,null,null,null,null,null,null,null,null,null,null,null,null,null,null,null,null,null,null,null,null,null,null,null,null,null,null,null,null,null,null,null,null,null,null,null,null,null,null,null,null,null,null,null,"CAD-JPY","",null,null,null,null,null,{"$f":"'Analysis Sheet'!$AP$24","v":0},{"$f":"'Analysis Sheet'!$AP$24","v":0},null,null,null,null,null,"",null,"CAD-JPY","",null,null,null,null,null,{"$f":"'Analysis Sheet'!$BR$24","v":0},{"$f":"'Analysis Sheet'!$BR$24","v":0},null,null,null,null,null,"",null,"",null,null,null,null,null,"CAD-JPY",{"$f":"'Analysis Sheet'!$CT$24","v":0},{"$f":"'Analysis Sheet'!$CT$24","v":0},null,null,null,null,null,"",null,"CAD-JPY",null,null,null,"CAD-JPY"]
[null,5040,"D3",null,null,null,null,null,null,null,null,null,null,null,null,null,null,null,null," ",null,null,null,null,null,null,null,null,null,null,null,null,null,null,null,null,null,null,null,null,null,null,null,null,null,null,null,null,null,null,null,null,null,null,null,null,null,null,null,null,null,null,null,null,null,null,null,null,null,null,null,null,null,null,null,null,null,null,null,null,null,null,null,null,null,null,null,null,null,null,null,null,null,null,null,null,null,null,null,null,null,null,null,null,null,null,null,null,null,null,null,null,null,null,null,null,null,null,null,null,null,null,null,null,null,null,null,null,null,null,null,null,null,null,null,null,null,null,null,null,null,null,null,null,null,null,null,null,null,null,null,null,null,null,null,null,null,null,null,null,null,null,null,null,null,null,null,null,null,null,null,null,null,null,null,{"$f":"IF(FU37<=FG37,0,IF(FU37>FG37,1))","v":0},{"$f":"SUM(FU30:FU36)+COUNTIF(FU30:FU36,1)","v":0}]
[null,5040,"D4",null,null,null,null,null,null,null,null,null,null,null,null,null,null,null,null,"DATA",null,null,null,null,null,null,null,null,null,null,null,null,null,null,null,null,null,null,null,null,null,"Do not Delete",null,null,null,null,null,null,null,null,null,null,null,null,null,null,null,null,null,null,null,null,null,null,null,null,null,null,null,null,null,null,null,null,null,null,null,null,null,null,null,null,null,null,null,null,null,null,null,null,null,null,null,null,null,null,null,null,null,null,null,null,null,null,null,null,null,null,null,null,null,null,null,null,null,null,null,null,null,null,null,null,null,null,null,null,null,null,null,null,null,null,null,null,null,null,null,"H4",null,null,null,null,null,null,null,null,null,null,null,null,null,null,null,"D1",null,null,null,null,null,null,null,null,null,null,null,null,null,null,null,"W1",null,null,null,null,null,null,null,null,null,"Example of GBP being Strong",null,null,null,"Example of GBP being Weak"]
[null,5040,"D5",null,null,null,null,null,null,null,null,null,null,null,null,null,null,null,null," ",null,null,null,null,null,null,null,null,null,null,null,null,null,null,null,null,null,null,null,null,null,null,null,null,null,null,null,null,null,null,null,null,null,null,null,null,null,null,null,null,null,null,null,null,null,null,null,null,null,null,null,null,null,null,null,null,null,null,null,null,null,null,null,null,null,null,null,null,null,null,null,null,null,null,null,null,null,null,null,null,null,null,null,null,null,null,null,null,null,null,null,null,null,null,null,null,null,null,null,null,null,null,null,null,null,null,null,null,null,null,"GBP-USD",{"$f":"IF(ISERROR(SEARCH(\"*UP*\",EI39,1)),\"\",\"1\")","v":""},null,null,null,null,null,{"$f":"'Analysis Sheet'!$AP$4","v":0},{"$f":"'Analysis Sheet'!$AP$4","v":0},null,null,null,null,null,{"$f":"IF(ISERROR(SEARCH(\"*DOWN*\",EH39,1)),\"\",\"1 \")","v":""},null,"GBP-USD",{"$f":"IF(ISERROR(SEARCH(\"*UP*\",EY39,1)),\"\",\"1\")","v":""},null,null,null,null,null,{"$f":"'Analysis Sheet'!$BR$4","v":0},{"$f":"'Analysis Sheet'!$BR$4","v":0},null,null,null,null,null,{"$f":"IF(ISERROR(SEARCH(\"*DOWN*\",EX39,1)),\"\",\"1 \")","v":""},null,{"$f":"IF(ISERROR(SEARCH(\"*UP*\",FO39,1)),\"\",\"1\")","v":""},null,null,null,null,null,"GBP-USD",{"$f":"'Analysis Sheet'!$CT$4","v":0},{"$f":"'Analysis Sheet'!$CT$4","v":0},null,null,null,null,null,{"$f":"IF(ISERROR(SEARCH(\"*DOWN*\",FN39,1)),\"\",\"1 \")","v":""},null,"GBP-USD",null,null,null,"GBP-USD"]
[null,5040,"D6",null,null,null,null,null,null,null,null,null,null,null,null,null,null,null,null," ",null,null,null,null,null,null,null,null,null,null,null,null,null,null,null,null,null,null,null,null,null,"DATA",null,null,null,null,null,null,null,null,null,null,null,null,null,null,null,null,null,null,null,null,null,null,null,null,null,null,null,null,null,null,null,null,null,null,null,null,null,null,null,null,null,null,null,null,null,null,null,null,null,null,null,null,null,null,null,null,null,null,null,null,null,null,null,null,null,null,null,null,null,null,null,null,null,null,null,null,null,null,null,null,null,null,null,null,null,null,null,null,"GBP-CHF","",null,null,null,null,null,{"$f":"'Analysis Sheet'!$AP$11","v":0},{"$f":"'Analysis Sheet'!$AP$11","v":0},null,null,null,null,null,"",null,"GBP-CHF","",null,null,null,null,null,{"$f":"'Analysis Sheet'!$BR$11","v":0},{"$f":"'Analysis Sheet'!$BR$11","v":0},null,null,null,null,null,"",null,"",null,null,null,null,null,"GBP-CHF",{"$f":"'Analysis Sheet'!$CT$11","v":0},{"$f":"'Analysis Sheet'!$CT$11","v":0},null,null,null,null,null,"",null,"GBP-CHF",null,null,null,"GBP-CHF"]
[null,5040,"D7",null,null,null,null,null,null,null,null,null,null,null,null,null,null,null,null,0,null,null,null,null,null,null,null,null,null,null,null,null,null,null,null,null,null,null,null,null,null,"Up",null,null,null,null,null,null,null,null,null,null,null,null,null,null,null,null,null,null,null,null,null,null,null,null,null,null,null,null,null,null,null,null,null,null,null,null,null,null,null,null,null,null,null,null,null,null,null,null,null,null,null,null,null,null,null,null,null,null,null,null,null,null,null,null,null,null,null,null,null,null,null,null,null,null,null,null,null,null,null,null,null,null,null,null,"S",null,null,null,"GBP-CAD","",null,null,null,null,null,{"$f":"'Analysis Sheet'!$AP$26","v":0},{"$f":"'Analysis Sheet'!$AP$26","v":0},null,null,null,null,null,"",null,"GBP-CAD","",null,null,null,null,null,{"$f":"'Analysis Sheet'!$BR$26","v":0},{"$f":"'Analysis Sheet'!$BR$26","v":0},null,null,null,null,null,"",null,"",null,null,null,null,null,"GBP-CAD",{"$f":"'Analysis Sheet'!$CT$26","v":0},{"$f":"'Analysis Sheet'!$CT$26","v":0},null,null,null,null,null,"",null,"GBP-CAD",null,null,null,"GBP-CAD"]
[null,5040,"D8",null,null,null,null,null,null,null,null,null,null,null,null,null,null,null,null,1,null,null,null,null,null,null,null,null,null,null,null,null,null,null,null,null,null,null,null,null,null,"Down",null,null,null,null,null,null,null,null,null,null,null,null,null,null,null,null,null,null,null,null,null,null,null,null,null,null,null,null,null,null,null,null,null,null,null,null,null,null,null,null,null,null,null,null,null,null,null,null,null,null,null,null,null,null,null,null,null,null,null,null,null,null,null,null,null,null,null,null,null,null,null,null,null,null,null,null,null,null,null,null,null,null,null,null,"L",null,null,null,"GBP-JPY ","",null,null,null,null,null,{"$f":"'Analysis Sheet'!$AP$20","v":0},{"$f":"'Analysis Sheet'!$AP$20","v":0},null,null,null,null,null,"",null,"GBP-JPY ","",null,null,null,null,null,{"$f":"'Analysis Sheet'!$BR$20","v":0},{"$f":"'Analysis Sheet'!$BR$20","v":0},null,null,null,null,null,"",null,"",null,null,null,null,null,"GBP-JPY ",{"$f":"'Analysis Sheet'!$CT$20","v":0},{"$f":"'Analysis Sheet'!$CT$20","v":0},null,null,null,null,null,"",null,"GBP-JPY ",null,null,null,"GBP-JPY "]
[null,5040,"D9",null,null,null,null,null,null,null,null,null,null,null,null,null,null,null,null,null,null,null,null,null,null,null,null,null,null,null,null,null,null,null,null,null,null,null,null,null,null,"No Trend",null,null,null,null,null,null,null,null,null,null,null,null,null,null,null,null,null,null,null,null,null,null,null,null,null,null,null,null,null,null,null,null,null,null,null,null,null,null,null,null,null,null,null,null,null,null,null,null,null,null,null,null,null,null,null,null,null,null,null,null,null,null,null,null,null,null,null,null,null,null,null,null,null,null,null,null,null,null,null,null,null,null,null,null,null,null,null,null,"GBP-AUD","",null,null,null,null,null,{"$f":"'Analysis Sheet'!$AP$25","v":0},{"$f":"'Analysis Sheet'!$AP$25","v":0},null,null,null,null,null,"",null,"GBP-AUD","",null,null,null,null,null,{"$f":"'Analysis Sheet'!$BR$25","v":0},{"$f":"'Analysis Sheet'!$BR$25","v":0},null,null,null,null,null,"",null,"",null,null,null,null,null,"GBP-AUD",{"$f":"'Analysis Sheet'!$CT$25","v":0},{"$f":"'Analysis Sheet'!$CT$25","v":0},null,null,null,null,null,"",null,"GBP-AUD",null,null,null,"GBP-AUD"]
[null,5040,"D10",null,null,null,null,null,null,null,null,null,null,null,null,null,null,null,null,null,null,null,null,null,null,null,null,null,null,null,null,null,null,null,null,null,null,null,null,null,null,null,null,null,null,null,null,null,null,null,null,null,null,null,null,null,null,null,null,null,null,null,null,null,null,null,null,null,null,null,null,null,null,null,null,null,null,null,null,null,null,null,null,null,null,null,null,null,null,null,null,null,null,null,null,null,null,null,null,null,null,null,null,null,null,null,null,null,null,null,null,null,null,null,null,null,null,null,null,null,null,null,null,null,null,null,null,null,null,null,"GBP-NZD","",null,null,null,null,null,{"$f":"'Analysis Sheet'!$AP$27","v":0},{"$f":"'Analysis Sheet'!$AP$27","v":0},null,null,null,null,null,"",null,"GBP-NZD","",null,null,null,null,null,{"$f":"'Analysis Sheet'!$BR$27","v":0},{"$f":"'Analysis Sheet'!$BR$27","v":0},null,null,null,null,null,"",null,"",null,null,null,null,null,"GBP-NZD",{"$f":"'Analysis Sheet'!$CT$27","v":0},{"$f":"'Analysis Sheet'!$CT$27","v":0},null,null,null,null,null,"",null,"GBP-NZD",null,null,null,"GBP-NZD"]
[null,5040,"D11",null,null,null,null,null,null,null,null,null,null,null,null,null,null,null,null,null,null,null,null,null,null,null,null,null,null,null,null,null,null,null,null,null,null,null,null,null,null,null,null,null,null,null,null,null,null,null,null,null,null,null,null,null,null,null,null,null,null,null,null,null,null,null,null,null,null,null,null,null,null,null,null,null,null,null,null,null,null,null,null,null,null,null,null,null,null,null,null,null,null,null,null,null,null,null,null,null,null,null,null,null,null,null,null,null,null,null,null,null,null,null,null,null,null,null,null,null,null,null,null,null,null,null,null,null,null,null,"EUR-GBP",{"$f":"IF(ISERROR(SEARCH(\"*down*\",EH45,1)),\"\",\"1\")","v":""},null,null,null,null,null,{"$f":"'Analysis Sheet'!$AP$15","v":0},{"$f":"'Analysis Sheet'!$AP$15","v":0},null,null,null,null,null,{"$f":"IF(ISERROR(SEARCH(\"*UP*\",EI45,1)),\"\",\"1 \")","v":""},null,"EUR-GBP",{"$f":"IF(ISERROR(SEARCH(\"*down*\",EX45,1)),\"\",\"1\")","v":""},null,null,null,null,null,{"$f":"'Analysis Sheet'!$BR$15","v":0},{"$f":"'Analysis Sheet'!$BR$15","v":0},null,null,null,null,null,{"$f":"IF(ISERROR(SEARCH(\"*UP*\",EY45,1)),\"\",\"1 \")","v":""},null,{"$f":"IF(ISERROR(SEARCH(\"*down*\",FN45,1)),\"\",\"1\")","v":""},null,null,null,null,null,"EUR-GBP",{"$f":"'Analysis Sheet'!$CT$15","v":0},{"$f":"'Analysis Sheet'!$CT$15","v":0},null,null,null,null,null,{"$f":"IF(ISERROR(SEARCH(\"*UP*\",FO45,1)),\"\",\"1 \")","v":""},null,"EUR-GBP",null,null,null,"EUR-GBP"]
[null,5040,"D12",null,null,null,null,null,null,null,null,null,null,null,null,null,null,null,null,null,null,null,null,null,null,null,null,null,null,null,null,null,null,null,null,null,null,null,null,null,null,null,null,null,null,null,null,null,null,null,null,null,null,null,null,null,null,null,null,null,null,null,null,null,null,null,null,null,null,null,null,null,null,null,null,null,null,null,null,null,null,null,null,null,null,null,null,null,null,null,null,null,null,null,null,null,null,null,null,null,null,null,null,null,null,null,null,null,null,null,null,null,null,null,null,null,null,null,null,null,null,null,null,null,null,null,null,null,null,null,null,null,null,null,null,null,null,null,null,null,null,null,null,null,null,null,null,null,null,null,null,null,null,null,null,null,null,null,null,null,null,null,null,null,null,null,null,null,null,null,null,null,null,null,null,{"$f":"IF(FU46<=FG46,0,IF(FU46>FG46,1))","v":0},{"$f":"SUM(FU39:FU45)+COUNTIF(FU39:FU45,1)","v":0}]
[null,5040,"D13",null,null,null,null,null,null,null,null,null,null,null,null,null,null,null,null,null,null,null,null,null,null,null,null,null,null,null,null,null,null,null,null,null,null,null,null,null,null,null,null,null,null,null,null,null,null,null,null,null,null,null,null,null,null,null,null,null,null,null,null,null,null,null,null,null,null,null,null,null,null,null,null,null,null,null,null,null,null,null,null,null,null,null,null,null,null,null,null,null,null,null,null,null,null,null,null,null,null,null,null,null,null,null,null,null,null,null,null,null,null,null,null,null,null,null,null,null,null,null,null,null,null,null,null,null,null,null,null,null,null,null,null,null,null,"H4",null,null,null,null,null,null,null,null,null,null,null,null,null,null,null,"D1",null,null,null,null,null,null,null,null,null,null,null,null,null,null,null,"W1",null,null,null,null,null,null,null,null,null,"Example of AUD being Strong",null,null,null,"Example of AUD being Weak"]
[null,5040,"D14",null,null,null,null,null,null,null,null,null,null,null,null,null,null,null,null,null,null,null,null,null,null,null,null,null,null,null,null,null,null,null,null,null,null,null,null,null,null,null,null,null,null,null,null,null,null,null,null,null,null,null,null,null,null,null,null,null,null,null,null,null,null,null,null,null,null,null,null,null,null,null,null,null,null,null,null,null,null,null,null,null,null,null,null,null,null,null,null,null,null,null,null,null,null,null,null,null,null,null,null,null,null,null,null,null,null,null,null,null,null,null,null,null,null,null,null,null,null,null,null,null,null,null,null,null,null,null,"AUD-USD",{"$f":"IF(ISERROR(SEARCH(\"*UP*\",EI48,1)),\"\",\"1\")","v":""},null,null,null,null,null,{"$f":"'Analysis Sheet'!$AP$5","v":0},{"$f":"'Analysis Sheet'!$AP$5","v":0},null,null,null,null,null,{"$f":"IF(ISERROR(SEARCH(\"*DOWN*\",EH48,1)),\"\",\"1 \")","v":""},null,"AUD-USD",{"$f":"IF(ISERROR(SEARCH(\"*UP*\",EY48,1)),\"\",\"1\")","v":""},null,null,null,null,null,{"$f":"'Analysis Sheet'!$BR$5","v":0},{"$f":"'Analysis Sheet'!$BR$5","v":0},null,null,null,null,null,{"$f":"IF(ISERROR(SEARCH(\"*DOWN*\",EX48,1)),\"\",\"1 \")","v":""},null,{"$f":"IF(ISERROR(SEARCH(\"*UP*\",FO48,1)),\"\",\"1\")","v":""},null,null,null,null,null,"AUD-USD",{"$f":"'Analysis Sheet'!$CT$5","v":0},{"$f":"'Analysis Sheet'!$CT$5","v":0},null,null,null,null,null,{"$f":"IF(ISERROR(SEARCH(\"*DOWN*\",FN48,1)),\"\",\"1 \")","v":""},null,"AUD-USD",null,null,null,"AUD-USD"]
[null,5040,"D15",null,null,null,null,null,null,null,null,null,null,null,null,null,null,null,null,null,null,null,null,null,null,null,null,null,null,null,null,null,null,null,null,null,null,null,null,null,null,null,null,null,null,null,null,null,null,null,null,null,null,null,null,null,null,null,null,null,null,null,null,null,null,null,null,null,null,null,null,null,null,null,null,null,null,null,null,null,null,null,null,null,null,null,null,null,null,null,null,null,null,null,null,null,null,null,null,null,null,null,null,null,null,null,null,null,null,null,null,null,null,null,null,null,null,null,null,null,null,null,null,null,null,null,null,null,null,null,"AUD-CHF",{"$f":"IF(ISERROR(SEARCH(\"*UP*\",EI49,1)),\"\",\"1\")","v":""},null,null,null,null,null,{"$f":"'Analysis Sheet'!$AP$12","v":0},{"$f":"'Analysis Sheet'!$AP$12","v":0},null,null,null,null,null,{"$f":"IF(ISERROR(SEARCH(\"*DOWN*\",EH49,1)),\"\",\"1 \")","v":""},null,"AUD-CHF",{"$f":"IF(ISERROR(SEARCH(\"*UP*\",EY49,1)),\"\",\"1\")","v":""},null,null,null,null,null,{"$f":"'Analysis Sheet'!$BR$12","v":0},{"$f":"'Analysis Sheet'!$BR$12","v":0},null,null,null,null,null,{"$f":"IF(ISERROR(SEARCH(\"*DOWN*\",EX49,1)),\"\",\"1 \")","v":""},null,{"$f":"IF(ISERROR(SEARCH(\"*UP*\",FO49,1)),\"\",\"1\")","v":""},null,null,null,null,null,"AUD-CHF",{"$f":"'Analysis Sheet'!$CT$12","v":0},{"$f":"'Analysis Sheet'!$CT$12","v":0},null,null,null,null,null,{"$f":"IF(ISERROR(SEARCH(\"*DOWN*\",FN49,1)),\"\",\"1 \")","v":""},null,"AUD-CHF",null,null,null,"AUD-CHF"]
[null,5040,"D16",null,null,null,null,null,null,null,null,null,null,null,null,null,null,null,null,null,null,null,null,null,null,null,null,null,null,null,null,null,null,null,null,null,null,null,null,null,null,null,null,null,null,null,null,null,null,null,null,null,null,null,null,null,null,null,null,null,null,null,null,null,null,null,null,null,null,null,null,null,null,null,null,null,null,null,null,null,null,null,null,null,null,null,null,null,null,null,null,null,null,null,null,null,null,null,null,null,null,null,null,null,null,null,null,null,null,null,null,null,null,null,null,null,null,null,null,null,null,null,null,null,null,null,null,null,null,null,"AUD-CAD",{"$f":"IF(ISERROR(SEARCH(\"*UP*\",EI50,1)),\"\",\"1\")","v":""},null,null,null,null,null,{"$f":"'Analysis Sheet'!$AP$28","v":0},{"$f":"'Analysis Sheet'!$AP$28","v":0},null,null,null,null,null,{"$f":"IF(ISERROR(SEARCH(\"*DOWN*\",EH50,1)),\"\",\"1 \")","v":""},null,"AUD-CAD",{"$f":"IF(ISERROR(SEARCH(\"*UP*\",EY50,1)),\"\",\"1\")","v":""},null,null,null,null,null,{"$f":"'Analysis Sheet'!$BR$28","v":0},{"$f":"'Analysis Sheet'!$BR$28","v":0},null,null,null,null,null,{"$f":"IF(ISERROR(SEARCH(\"*DOWN*\",EX50,1)),\"\",\"1 \")","v":""},null,{"$f":"IF(ISERROR(SEARCH(\"*UP*\",FO50,1)),\"\",\"1\")","v":""},null,null,null,null,null,"AUD-CAD",{"$f":"'Analysis Sheet'!$CT$28","v":0},{"$f":"'Analysis Sheet'!$CT$28","v":0},null,null,null,null,null,{"$f":"IF(ISERROR(SEARCH(\"*DOWN*\",FN50,1)),\"\",\"1 \")","v":""},null,"AUD-CAD",null,null,null,"AUD-CAD"]
[null,5040,"D17",null,null,null,null,null,null,null,null,null,null,null,null,null,null,null,null,null,null,null,null,null,null,null,null,null,null,null,null,null,null,null,null,null,null,null,null,null,null,null,null,null,null,null,null,null,null,null,null,null,null,null,null,null,null,null,null,null,null,null,null,null,null,null,null,null,null,null,null,null,null,null,null,null,null,null,null,null,null,null,null,null,null,null,null,null,null,null,null,null,null,null,null,null,null,null,null,null,null,null,null,null,null,null,null,null,null,null,null,null,null,null,null,null,null,null,null,null,null,null,null,null,null,null,null,null,null,null,"AUD-JPY",{"$f":"IF(ISERROR(SEARCH(\"*UP*\",EI51,1)),\"\",\"1\")","v":""},null,null,null,null,null,{"$f":"'Analysis Sheet'!$AP$21","v":0},{"$f":"'Analysis Sheet'!$AP$21","v":0},null,null,null,null,null,{"$f":"IF(ISERROR(SEARCH(\"*DOWN*\",EH51,1)),\"\",\"1 \")","v":""},null,"AUD-JPY",{"$f":"IF(ISERROR(SEARCH(\"*UP*\",EY51,1)),\"\",\"1\")","v":""},null,null,null,null,null,{"$f":"'Analysis Sheet'!$BR$21","v":0},{"$f":"'Analysis Sheet'!$BR$21","v":0},null,null,null,null,null,{"$f":"IF(ISERROR(SEARCH(\"*DOWN*\",EX51,1)),\"\",\"1 \")","v":""},null,{"$f":"IF(ISERROR(SEARCH(\"*UP*\",FO51,1)),\"\",\"1\")","v":""},null,null,null,null,null,"AUD-JPY",{"$f":"'Analysis Sheet'!$CT$21","v":0},{"$f":"'Analysis Sheet'!$CT$21","v":0},null,null,null,null,null,{"$f":"IF(ISERROR(SEARCH(\"*DOWN*\",FN51,1)),\"\",\"1 \")","v":""},null,"AUD-JPY",null,null,null,"AUD-JPY"]
[null,5040,"D18",null,null,null,null,null,null,null,null,null,null,null,null,null,null,null,null,null,null,null,null,null,null,null,null,null,null,null,null,null,null,null,null,null,null,null,null,null,null,null,null,null,null,null,null,null,null,null,null,null,null,null,null,null,null,null,null,null,null,null,null,null,null,null,null,null,null,null,null,null,null,null,null,null,null,null,null,null,null,null,null,null,null,null,null,null,null,null,null,null,null,null,null,null,null,null,null,null,null,null,null,null,null,null,null,null,null,null,null,null,null,null,null,null,null,null,null,null,null,null,null,null,null,null,null,null,null,null,"AUD-NZD",{"$f":"IF(ISERROR(SEARCH(\"*UP*\",EI52,1)),\"\",\"1\")","v":""},null,null,null,null,null,{"$f":"'Analysis Sheet'!$AP$29","v":0},{"$f":"'Analysis Sheet'!$AP$29","v":0},null,null,null,null,null,{"$f":"IF(ISERROR(SEARCH(\"*DOWN*\",EH52,1)),\"\",\"1 \")","v":""},null,"AUD-NZD",{"$f":"IF(ISERROR(SEARCH(\"*UP*\",EY52,1)),\"\",\"1\")","v":""},null,null,null,null,null,{"$f":"'Analysis Sheet'!$BR$29","v":0},{"$f":"'Analysis Sheet'!$BR$29","v":0},null,null,null,null,null,{"$f":"IF(ISERROR(SEARCH(\"*DOWN*\",EX52,1)),\"\",\"1 \")","v":""},null,{"$f":"IF(ISERROR(SEARCH(\"*UP*\",FO52,1)),\"\",\"1\")","v":""},null,null,null,null,null,"AUD-NZD",{"$f":"'Analysis Sheet'!$CT$29","v":0},{"$f":"'Analysis Sheet'!$CT$29","v":0},null,null,null,null,null,{"$f":"IF(ISERROR(SEARCH(\"*DOWN*\",FN52,1)),\"\",\"1 \")","v":""},null,"AUD-NZD",null,null,null,"AUD-NZD"]
[null,5040,"D19",null,null,null,null,null,null,null,null,null,null,null,null,null,null,null,null,null,null,null,null,null,null,null,null,null,null,null,null,null,null,null,null,null,null,null,null,null,null,null,null,null,null,null,null,null,null,null,null,null,null,null,null,null,null,null,null,null,null,null,null,null,null,null,null,null,null,null,null,null,null,null,null,null,null,null,null,null,null,null,null,null,null,null,null,null,null,null,null,null,null,null,null,null,null,null,null,null,null,null,null,null,null,null,null,null,null,null,null,null,null,null,null,null,null,null,null,null,null,null,null,null,null,null,null,null,null,null,"GBP-AUD",{"$f":"IF(ISERROR(SEARCH(\"*down*\",EH53,1)),\"\",\"1\")","v":""},null,null,null,null,null,{"$f":"'Analysis Sheet'!$AP$25","v":0},{"$f":"'Analysis Sheet'!$AP$25","v":0},null,null,null,null,null,{"$f":"IF(ISERROR(SEARCH(\"*UP*\",EI53,1)),\"\",\"1 \")","v":""},null,"GBP-AUD",{"$f":"IF(ISERROR(SEARCH(\"*down*\",EX53,1)),\"\",\"1\")","v":""},null,null,null,null,null,{"$f":"'Analysis Sheet'!$BR$25","v":0},{"$f":"'Analysis Sheet'!$BR$25","v":0},null,null,null,null,null,{"$f":"IF(ISERROR(SEARCH(\"*UP*\",EY53,1)),\"\",\"1 \")","v":""},null,{"$f":"IF(ISERROR(SEARCH(\"*down*\",FN53,1)),\"\",\"1\")","v":""},null,null,null,null,null,"GBP-AUD",{"$f":"'Analysis Sheet'!$CT$25","v":0},{"$f":"'Analysis Sheet'!$CT$25","v":0},null,null,null,null,null,{"$f":"IF(ISERROR(SEARCH(\"*UP*\",FO53,1)),\"\",\"1 \")","v":""},null,"GBP-AUD",null,null,null,"GBP-AUD"]
[null,5040,"D20",null,null,null,null,null,null,null,null,null,null,null,null,null,null,null,null,null,null,null,null,null,null,null,null,null,null,null,null,null,null,null,null,null,null,null,null,null,null,null,null,null,null,null,null,null,null,null,null,null,null,null,null,null,null,null,null,null,null,null,null,null,null,null,null,null,null,null,null,null,null,null,null,null,null,null,null,null,null,null,null,null,null,null,null,null,null,null,null,null,null,null,null,null,null,null,null,null,null,null,null,null,null,null,null,null,null,null,null,null,null,null,null,null,null,null,null,null,null,null,null,null,null,null,null,null,null,null,"EUR-AUD",{"$f":"IF(ISERROR(SEARCH(\"*down*\",EH54,1)),\"\",\"1\")","v":""},null,null,null,null,null,{"$f":"'Analysis Sheet'!$AP$17","v":0},{"$f":"'Analysis Sheet'!$AP$17","v":0},null,null,null,null,null,{"$f":"IF(ISERROR(SEARCH(\"*UP*\",EI54,1)),\"\",\"1 \")","v":""},null,"EUR-AUD",{"$f":"IF(ISERROR(SEARCH(\"*down*\",EX54,1)),\"\",\"1\")","v":""},null,null,null,null,null,{"$f":"'Analysis Sheet'!$BR$17","v":0},{"$f":"'Analysis Sheet'!$BR$17","v":0},null,null,null,null,null,{"$f":"IF(ISERROR(SEARCH(\"*UP*\",EY54,1)),\"\",\"1 \")","v":""},null,{"$f":"IF(ISERROR(SEARCH(\"*down*\",FN54,1)),\"\",\"1\")","v":""},null,null,null,null,null,"EUR-AUD",{"$f":"'Analysis Sheet'!$CT$17","v":0},{"$f":"'Analysis Sheet'!$CT$17","v":0},null,null,null,null,null,{"$f":"IF(ISERROR(SEARCH(\"*UP*\",FO54,1)),\"\",\"1 \")","v":""},null,"EUR-AUD",null,null,null,"EUR-AUD"]
[null,5040,"D21",null,null,null,null,null,null,null,null,null,null,null,null,null,null,null,null,null,null,null,null,null,null,null,null,null,null,null,null,null,null,null,null,null,null,null,null,null,null,null,null,null,null,null,null,null,null,null,null,null,null,null,null,null,null,null,null,null,null,null,null,null,null,null,null,null,null,null,null,null,null,null,null,null,null,null,null,null,null,null,null,null,null,null,null,null,null,null,null,null,null,null,null,null,null,null,null,null,null,null,null,null,null,null,null,null,null,null,null,null,null,null,null,null,null,null,null,null,null,null,null,null,null,null,null,null,null,null,null,null,null,null,null,null,null,null,null,null,null,null,null,null,null,null,null,null,null,null,null,null,null,null,null,null,null,null,null,null,null,null,null,null,null,null,null,null,null,null,null,null,null,null,null,{"$f":"IF(FU55<=FG55,0,IF(FU55>FG55,1))","v":0},{"$f":"SUM(FU48:FU54)+COUNTIF(FU48:FU54,1)","v":0}]
[null,5040,"D22",null,null,null,null,null,null,null,null,null,null,null,null,null,null,null,null,null,null,null,null,null,null,null,null,null,null,null,null,null,null,null,null,null,null,null,null,null,null,null,null,null,null,null,null,null,null,null,null,null,null,null,null,null,null,null,null,null,null,null,null,null,null,null,null,null,null,null,null,null,null,null,null,null,null,null,null,null,null,null,null,null,null,null,null,null,null,null,null,null,null,null,null,null,null,null,null,null,null,null,null,null,null,null,null,null,null,null,null,null,null,null,null,null,null,null,null,null,null,null,null,null,null,null,null,null,null,null,null,null,null,null,null,null,null,"H4",null,null,null,null,null,null,null,null,null,null,null,null,null,null,null,"D1",null,null,null,null,null,null,null,null,null,null,null,null,null,null,null,"W1",null,null,null,null,null,null,null,null,null,"Example of CAD being Strong",null,null,null,"Example of CAD being Weak"]
[null,5040,"D23",null,null,null,null,null,null,null,null,null,null,null,null,null,null,null,null,null,null,null,null,null,null,null,null,null,null,null,null,null,null,null,null,null,null,null,null,null,null,null,null,null,null,null,null,null,null,null,null,null,null,null,null,null,null,null,null,null,null,null,null,null,null,null,null,null,null,null,null,null,null,null,null,null,null,null,null,null,null,null,null,null,null,null,null,null,null,null,null,null,null,null,null,null,null,null,null,null,null,null,null,null,null,null,null,null,null,null,null,null,null,null,null,null,null,null,null,null,null,null,null,null,null,null,null,null,null,null,"USD-CAD",{"$f":"IF(ISERROR(SEARCH(\"*down*\",EH57,1)),\"\",\"1\")","v":""},null,null,null,null,null,{"$f":"'Analysis Sheet'!$AP$9","v":0},{"$f":"'Analysis Sheet'!$AP$9","v":0},null,null,null,null,null,{"$f":"IF(ISERROR(SEARCH(\"*UP*\",EI57,1)),\"\",\"1 \")","v":""},null,"USD-CAD",{"$f":"IF(ISERROR(SEARCH(\"*down*\",EX57,1)),\"\",\"1\")","v":""},null,null,null,null,null,{"$f":"'Analysis Sheet'!$BR$9","v":0},{"$f":"'Analysis Sheet'!$BR$9","v":0},null,null,null,null,null,{"$f":"IF(ISERROR(SEARCH(\"*UP*\",EY57,1)),\"\",\"1 \")","v":""},null,{"$f":"IF(ISERROR(SEARCH(\"*down*\",FN57,1)),\"\",\"1\")","v":""},null,null,null,null,null,"USD-CAD",{"$f":"'Analysis Sheet'!$CT$9","v":0},{"$f":"'Analysis Sheet'!$CT$9","v":0},null,null,null,null,null,{"$f":"IF(ISERROR(SEARCH(\"*UP*\",FO57,1)),\"\",\"1 \")","v":""},null,"USD-CAD",null,null,null,"USD-CAD"]
[null,5040,"D24",null,null,null,null,null,null,null,null,null,null,null,null,null,null,null,null,null,null,null,null,null,null,null,null,null,null,null,null,null,null,null,null,null,null,null,null,null,null,null,null,null,null,null,null,null,null,null,null,null,null,null,null,null,null,null,null,null,null,null,null,null,null,null,null,null,null,null,null,null,null,null,null,null,null,null,null,null,null,null,null,null,null,null,null,null,null,null,null,null,null,null,null,null,null,null,null,null,null,null,null,null,null,null,null,null,null,null,null,null,null,null,null,null,null,null,null,null,null,null,null,null,null,null,null,null,null,null,"EUR-CAD",{"$f":"IF(ISERROR(SEARCH(\"*down*\",EH58,1)),\"\",\"1\")","v":""},null,null,null,null,null,{"$f":"'Analysis Sheet'!$AP$16","v":0},{"$f":"'Analysis Sheet'!$AP$16","v":0},null,null,null,null,null,{"$f":"IF(ISERROR(SEARCH(\"*UP*\",EI58,1)),\"\",\"1 \")","v":""},null,"EUR-CAD",{"$f":"IF(ISERROR(SEARCH(\"*down*\",EX58,1)),\"\",\"1\")","v":""},null,null,null,null,null,{"$f":"'Analysis Sheet'!$BR$16","v":0},{"$f":"'Analysis Sheet'!$BR$16","v":0},null,null,null,null,null,{"$f":"IF(ISERROR(SEARCH(\"*UP*\",EY58,1)),\"\",\"1 \")","v":""},null,{"$f":"IF(ISERROR(SEARCH(\"*down*\",FN58,1)),\"\",\"1\")","v":""},null,null,null,null,null,"EUR-CAD",{"$f":"'Analysis Sheet'!$CT$16","v":0},{"$f":"'Analysis Sheet'!$CT$16","v":0},null,null,null,null,null,{"$f":"IF(ISERROR(SEARCH(\"*UP*\",FO58,1)),\"\",\"1 \")","v":""},null,"EUR-CAD",null,null,null,"EUR-CAD"]
[null,5040,"D25",null,null,null,null,null,null,null,null,null,null,null,null,null,null,null,null,null,null,null,null,null,null,null,null,null,null,null,null,null,null,null,null,null,null,null,null,null,null,null,null,null,null,null,null,null,null,null,null,null,null,null,null,null,null,null,null,null,null,null,null,null,null,null,null,null,null,null,null,null,null,null,null,null,null,null,null,null,null,null,null,null,null,null,null,null,null,null,null,null,null,null,null,null,null,null,null,null,null,null,null,null,null,null,null,null,null,null,null,null,null,null,null,null,null,null,null,null,null,null,null,null,null,null,null,null,null,null,"AUD-CAD",{"$f":"IF(ISERROR(SEARCH(\"*down*\",EH59,1)),\"\",\"1\")","v":""},null,null,null,null,null,{"$f":"'Analysis Sheet'!$AP$28","v":0},{"$f":"'Analysis Sheet'!$AP$28","v":0},null,null,null,null,null,{"$f":"IF(ISERROR(SEARCH(\"*UP*\",EI59,1)),\"\",\"1 \")","v":""},null,"AUD-CAD",{"$f":"IF(ISERROR(SEARCH(\"*down*\",EX59,1)),\"\",\"1\")","v":""},null,null,null,null,null,{"$f":"'Analysis Sheet'!$BR$28","v":0},{"$f":"'Analysis Sheet'!$BR$28","v":0},null,null,null,null,null,{"$f":"IF(ISERROR(SEARCH(\"*UP*\",EY59,1)),\"\",\"1 \")","v":""},null,{"$f":"IF(ISERROR(SEARCH(\"*down*\",FN59,1)),\"\",\"1\")","v":""},null,null,null,null,null,"AUD-CAD",{"$f":"'Analysis Sheet'!$CT$28","v":0},{"$f":"'Analysis Sheet'!$CT$28","v":0},null,null,null,null,null,{"$f":"IF(ISERROR(SEARCH(\"*UP*\",FO59,1)),\"\",\"1 \")","v":""},null,"AUD-CAD",null,null,null,"AUD-CAD"]
[null,5040,"D26",null,null,null,null,null,null,null,null,null,null,null,null,null,null,null,null,null,null,null,null,null,null,null,null,null,null,null,null,null,null,null,null,null,null,null,null,null,null,null,null,null,null,null,null,null,null,null,null,null,null,null,null,null,null,null,null,null,null,null,null,null,null,null,null,null,null,null,null,null,null,null,null,null,null,null,null,null,null,null,null,null,null,null,null,null,null,null,null,null,null,null,null,null,null,null,null,null,null,null,null,null,null,null,null,null,null,null,null,null,null,null,null,null,null,null,null,null,null,null,null,null,null,null,null,null,null,null,"NZD-CAD",{"$f":"IF(ISERROR(SEARCH(\"*down*\",EH60,1)),\"\",\"1\")","v":""},null,null,null,null,null,{"$f":"'Analysis Sheet'!$AP$30","v":0},{"$f":"'Analysis Sheet'!$AP$30","v":0},null,null,null,null,null,{"$f":"IF(ISERROR(SEARCH(\"*UP*\",EI60,1)),\"\",\"1 \")","v":""},null,"NZD-CAD",{"$f":"IF(ISERROR(SEARCH(\"*down*\",EX60,1)),\"\",\"1\")","v":""},null,null,null,null,null,{"$f":"'Analysis Sheet'!$BR$30","v":0},{"$f":"'Analysis Sheet'!$BR$30","v":0},null,null,null,null,null,{"$f":"IF(ISERROR(SEARCH(\"*UP*\",EY60,1)),\"\",\"1 \")","v":""},null,{"$f":"IF(ISERROR(SEARCH(\"*down*\",FN60,1)),\"\",\"1\")","v":""},null,null,null,null,null,"NZD-CAD",{"$f":"'Analysis Sheet'!$CT$30","v":0},{"$f":"'Analysis Sheet'!$CT$30","v":0},null,null,null,null,null,{"$f":"IF(ISERROR(SEARCH(\"*UP*\",FO60,1)),\"\",\"1 \")","v":""},null,"NZD-CAD",null,null,null,"NZD-CAD"]
[null,5040,"D27",null,null,null,null,null,null,null,null,null,null,null,null,null,null,null,null,null,null,null,null,null,null,null,null,null,null,null,null,null,null,null,null,null,null,null,null,null,null,null,null,null,null,null,null,null,null,null,null,null,null,null,null,null,null,null,null,null,null,null,null,null,null,null,null,null,null,null,null,null,null,null,null,null,null,null,null,null,null,null,null,null,null,null,null,null,null,null,null,null,null,null,null,null,null,null,null,null,null,null,null,null,null,null,null,null,null,null,null,null,null,null,null,null,null,null,null,null,null,null,null,null,null,null,null,null,null,null,"GBP-CAD",{"$f":"IF(ISERROR(SEARCH(\"*down*\",EH61,1)),\"\",\"1\")","v":""},null,null,null,null,null,{"$f":"'Analysis Sheet'!$AP$26","v":0},{"$f":"'Analysis Sheet'!$AP$26","v":0},null,null,null,null,null,{"$f":"IF(ISERROR(SEARCH(\"*UP*\",EI61,1)),\"\",\"1 \")","v":""},null,"GBP-CAD",{"$f":"IF(ISERROR(SEARCH(\"*down*\",EX61,1)),\"\",\"1\")","v":""},null,null,null,null,null,{"$f":"'Analysis Sheet'!$BR$26","v":0},{"$f":"'Analysis Sheet'!$BR$26","v":0},null,null,null,null,null,{"$f":"IF(ISERROR(SEARCH(\"*UP*\",EY61,1)),\"\",\"1 \")","v":""},null,{"$f":"IF(ISERROR(SEARCH(\"*down*\",FN61,1)),\"\",\"1\")","v":""},null,null,null,null,null,"GBP-CAD",{"$f":"'Analysis Sheet'!$CT$26","v":0},{"$f":"'Analysis Sheet'!$CT$26","v":0},null,null,null,null,null,{"$f":"IF(ISERROR(SEARCH(\"*UP*\",FO61,1)),\"\",\"1 \")","v":""},null,"GBP-CAD",null,null,null,"GBP-CAD"]
[null,5040,"D28",null,null,null,null,null,null,null,null,null,null,null,null,null,null,null,null,null,null,null,null,null,null,null,null,null,null,null,null,null,null,null,null,null,null,null,null,null,null,null,null,null,null,null,null,null,null,null,null,null,null,null,null,null,null,null,null,null,null,null,null,null,null,null,null,null,null,null,null,null,null,null,null,null,null,null,null,null,null,null,null,null,null,null,null,null,null,null,null,null,null,null,null,null,null,null,null,null,null,null,null,null,null,null,null,null,null,null,null,null,null,null,null,null,null,null,null,null,null,null,null,null,null,null,null,null,null,null,"CAD-CHF",{"$f":"IF(ISERROR(SEARCH(\"*UP*\",EI62,1)),\"\",\"1\")","v":""},null,null,null,null,null,{"$f":"'Analysis Sheet'!$AP$14","v":0},{"$f":"'Analysis Sheet'!$AP$14","v":0},null,null,null,null,null,{"$f":"IF(ISERROR(SEARCH(\"*DOWN*\",EH62,1)),\"\",\"1 \")","v":""},null,"CAD-CHF",{"$f":"IF(ISERROR(SEARCH(\"*UP*\",EY62,1)),\"\",\"1\")","v":""},null,null,null,null,null,{"$f":"'Analysis Sheet'!$BR$14","v":0},{"$f":"'Analysis Sheet'!$BR$14","v":0},null,null,null,null,null,{"$f":"IF(ISERROR(SEARCH(\"*DOWN*\",EX62,1)),\"\",\"1 \")","v":""},null,{"$f":"IF(ISERROR(SEARCH(\"*UP*\",FO62,1)),\"\",\"1\")","v":""},null,null,null,null,null,"CAD-CHF",{"$f":"'Analysis Sheet'!$CT$14","v":0},{"$f":"'Analysis Sheet'!$CT$14","v":0},null,null,null,null,null,{"$f":"IF(ISERROR(SEARCH(\"*DOWN*\",FN62,1)),\"\",\"1 \")","v":""},null,"CAD-CHF",null,null,null,"CAD-CHF"]
[null,5040,"D29",null,null,null,null,null,null,null,null,null,null,null,null,null,null,null,null,null,null,null,null,null,null,null,null,null,null,null,null,null,null,null,null,null,null,null,null,null,null,null,null,null,null,null,null,null,null,null,null,null,null,null,null,null,null,null,null,null,null,null,null,null,null,null,null,null,null,null,null,null,null,null,null,null,null,null,null,null,null,null,null,null,null,null,null,null,null,null,null,null,null,null,null,null,null,null,null,null,null,null,null,null,null,null,null,null,null,null,null,null,null,null,null,null,null,null,null,null,null,null,null,null,null,null,null,null,null,null,"CAD-JPY",{"$f":"IF(ISERROR(SEARCH(\"*UP*\",EI63,1)),\"\",\"1\")","v":""},null,null,null,null,null,{"$f":"'Analysis Sheet'!$AP$24","v":0},{"$f":"'Analysis Sheet'!$AP$24","v":0},null,null,null,null,null,{"$f":"IF(ISERROR(SEARCH(\"*DOWN*\",EH63,1)),\"\",\"1 \")","v":""},null,"CAD-JPY",{"$f":"IF(ISERROR(SEARCH(\"*UP*\",EY63,1)),\"\",\"1\")","v":""},null,null,null,null,null,{"$f":"'Analysis Sheet'!$BR$24","v":0},{"$f":"'Analysis Sheet'!$BR$24","v":0},null,null,null,null,null,{"$f":"IF(ISERROR(SEARCH(\"*DOWN*\",EX63,1)),\"\",\"1 \")","v":""},null,{"$f":"IF(ISERROR(SEARCH(\"*UP*\",FO63,1)),\"\",\"1\")","v":""},null,null,null,null,null,"CAD-JPY",{"$f":"'Analysis Sheet'!$CT$24","v":0},{"$f":"'Analysis Sheet'!$CT$24","v":0},null,null,null,null,null,{"$f":"IF(ISERROR(SEARCH(\"*DOWN*\",FN63,1)),\"\",\"1 \")","v":""},null,"CAD-JPY",null,null,null,"CAD-JPY"]
[null,5040,"D30",null,null,null,null,null,null,null,null,null,null,null,null,null,null,null,null,null,null,null,null,null,null,null,null,null,null,null,null,null,null,null,null,null,null,null,null,null,null,null,null,null,null,null,null,null,null,null,null,null,null,null,null,null,null,null,null,null,null,null,null,null,null,null,null,null,null,null,null,null,null,null,null,null,null,null,null,null,null,null,null,null,null,null,null,null,null,null,null,null,null,null,null,null,null,null,null,null,null,null,null,null,null,null,null,null,null,null,null,null,null,null,null,null,null,null,null,null,null,null,null,null,null,null,null,null,null,null,null,null,null,null,null,null,null,null,null,null,null,null,null,null,null,null,null,null,null,null,null,null,null,null,null,null,null,null,null,null,null,null,null,null,null,null,null,null,null,null,null,null,null,null,null,{"$f":"IF(FU64<=FG64,0,IF(FU64>FG64,1))","v":0},{"$f":"SUM(FU57:FU63)+COUNTIF(FU57:FU63,1)","v":0}]
[null,5040,"D31",null,null,null,null,null,null,null,null,null,null,null,null,null,null,null,null,null,null,null,null,null,null,null,null,null,null,null,null,null,null,null,null,null,null,null,null,null,null,null,null,null,null,null,null,null,null,null,null,null,null,null,null,null,null,null,null,null,null,null,null,null,null,null,null,null,null,null,null,null,null,null,null,null,null,null,null,null,null,null,null,null,null,null,null,null,null,null,null,null,null,null,null,null,null,null,null,null,null,null,null,null,null,null,null,null,null,null,null,null,null,null,null,null,null,null,null,null,null,null,null,null,null,null,null,null,null,null,null,null,null,null,null,null,null,"H4",null,null,null,null,null,null,null,null,null,null,null,null,null,null,null,"D1",null,null,null,null,null,null,null,null,null,null,null,null,null,null,null,"W1",null,null,null,null,null,null,null,null,null,"Example of NZD being Strong",null,null,null,"Example of NZD being Weak"]
[null,5040,"D32",null,null,null,null,null,null,null,null,null,null,null,null,null,null,null,null,null,null,null,null,null,null,null,null,null,null,null,null,null,null,null,null,null,null,null,null,null,null,null,null,null,null,null,null,null,null,null,null,null,null,null,null,null,null,null,null,null,null,null,null,null,null,null,null,null,null,null,null,null,null,null,null,null,null,null,null,null,null,null,null,null,null,null,null,null,null,null,null,null,null,null,null,null,null,null,null,null,null,null,null,null,null,null,null,null,null,null,null,null,null,null,null,null,null,null,null,null,null,null,null,null,null,null,null,null,null,null,"NZD-USD",{"$f":"IF(ISERROR(SEARCH(\"*UP*\",EI66,1)),\"\",\"1\")","v":""},null,null,null,null,null,{"$f":"'Analysis Sheet'!$AP$6","v":0},{"$f":"'Analysis Sheet'!$AP$6","v":0},null,null,null,null,null,{"$f":"IF(ISERROR(SEARCH(\"*DOWN*\",EH66,1)),\"\",\"1 \")","v":""},null,"NZD-USD",{"$f":"IF(ISERROR(SEARCH(\"*UP*\",EY66,1)),\"\",\"1\")","v":""},null,null,null,null,null,{"$f":"'Analysis Sheet'!$BR$6","v":0},{"$f":"'Analysis Sheet'!$BR$6","v":0},null,null,null,null,null,{"$f":"IF(ISERROR(SEARCH(\"*DOWN*\",EX66,1)),\"\",\"1 \")","v":""},null,{"$f":"IF(ISERROR(SEARCH(\"*UP*\",FO66,1)),\"\",\"1\")","v":""},null,null,null,null,null,"NZD-USD",{"$f":"'Analysis Sheet'!$CT$6","v":0},{"$f":"'Analysis Sheet'!$CT$6","v":0},null,null,null,null,null,{"$f":"IF(ISERROR(SEARCH(\"*DOWN*\",FN66,1)),\"\",\"1 \")","v":""},null,"NZD-USD",null,null,null,"NZD-USD"]
[null,5045,"D4",null,null,null,null,null,null,null,null,null,null,null,null,null,null,null,null,null,null,null,null,null,null,null,null,null,null,null,null,null,null,null,null,null,null,null,null,null,null,null,null,null,null,null,null,null,null,null,null,null,null,null,null,null,null,null,null,null,null,null,null,null,null,null,null,null,null,null,null,null,null,null,null,null,null,null,null,null,null,null,null,null,null,null,null,null,null,null,null,null,null,null,null,null,null,null,null,null,null,null,null,null,null,null,null,null,null,null,null,null,null,null,null,null,null,null,null,null,null,null,null,null,null,null,null,null,null,null,"NZD-CHF",{"$f":"IF(ISERROR(SEARCH(\"*UP*\",EI67,1)),\"\",\"1\")","v":""},null,null,null,null,null,{"$f":"'Analysis Sheet'!$AP$13","v":0},{"$f":"'Analysis Sheet'!$AP$13","v":0},null,null,null,null,null,{"$f":"IF(ISERROR(SEARCH(\"*DOWN*\",EH67,1)),\"\",\"1 \")","v":""},null,"NZD-CHF",{"$f":"IF(ISERROR(SEARCH(\"*UP*\",EY67,1)),\"\",\"1\")","v":""},null,null,null,null,null,{"$f":"'Analysis Sheet'!$BR$13","v":0},{"$f":"'Analysis Sheet'!$BR$13","v":0},null,null,null,null,null,{"$f":"IF(ISERROR(SEARCH(\"*DOWN*\",EX67,1)),\"\",\"1 \")","v":""},null,{"$f":"IF(ISERROR(SEARCH(\"*UP*\",FO67,1)),\"\",\"1\")","v":""},null,null,null,null,null,"NZD-CHF",{"$f":"'Analysis Sheet'!$CT$13","v":0},{"$f":"'Analysis Sheet'!$CT$13","v":0},null,null,null,null,null,{"$f":"IF(ISERROR(SEARCH(\"*DOWN*\",FN67,1)),\"\",\"1 \")","v":""},null,"NZD-CHF",null,null,null,"NZD-CHF"]
[null,5050,"D4",null,null,null,null,null,null,null,null,null,null,null,null,null,null,null,null,null,null,null,null,null,null,null,null,null,null,null,null,null,null,null,null,null,null,null,null,null,null,null,null,null,null,null,null,null,null,null,null,null,null,null,null,null,null,null,null,null,null,null,null,null,null,null,null,null,null,null,null,null,null,null,null,null,null,null,null,null,null,null,null,null,null,null,null,null,null,null,null,null,null,null,null,null,null,null,null,null,null,null,null,null,null,null,null,null,null,null,null,null,null,null,null,null,null,null,null,null,null,null,null,null,null,null,null,null,null,null,"NZD-JPY",{"$f":"IF(ISERROR(SEARCH(\"*UP*\",EI68,1)),\"\",\"1\")","v":""},null,null,null,null,null,{"$f":"'Analysis Sheet'!$AP$23","v":0},{"$f":"'Analysis Sheet'!$AP$23","v":0},null,null,null,null,null,{"$f":"IF(ISERROR(SEARCH(\"*DOWN*\",EH68,1)),\"\",\"1 \")","v":""},null,"NZD-JPY",{"$f":"IF(ISERROR(SEARCH(\"*UP*\",EY68,1)),\"\",\"1\")","v":""},null,null,null,null,null,{"$f":"'Analysis Sheet'!$BR$23","v":0},{"$f":"'Analysis Sheet'!$BR$23","v":0},null,null,null,null,null,{"$f":"IF(ISERROR(SEARCH(\"*DOWN*\",EX68,1)),\"\",\"1 \")","v":""},null,{"$f":"IF(ISERROR(SEARCH(\"*UP*\",FO68,1)),\"\",\"1\")","v":""},null,null,null,null,null,"NZD-JPY",{"$f":"'Analysis Sheet'!$CT$23","v":0},{"$f":"'Analysis Sheet'!$CT$23","v":0},null,null,null,null,null,{"$f":"IF(ISERROR(SEARCH(\"*DOWN*\",FN68,1)),\"\",\"1 \")","v":""},null,"NZD-JPY",null,null,null,"NZD-JPY"]
[null,null,null,null,null,null,null,null,null,null,null,null,null,null,null,null,null,null,null,null,null,null,null,null,null,null,null,null,null,null,null,null,null,null,null,null,null,null,null,null,null,null,null,null,null,null,null,null,null,null,null,null,null,null,null,null,null,null,null,null,null,null,null,null,null,null,null,null,null,null,null,null,null,null,null,null,null,null,null,null,null,null,null,null,null,null,null,null,null,null,null,null,null,null,null,null,null,null,null,null,null,null,null,null,null,null,null,null,null,null,null,null,null,null,null,null,null,null,null,null,null,null,null,null,null,null,null,null,null,null,"NZD-CAD",{"$f":"IF(ISERROR(SEARCH(\"*UP*\",EI69,1)),\"\",\"1\")","v":""},null,null,null,null,null,{"$f":"'Analysis Sheet'!$AP$30","v":0},{"$f":"'Analysis Sheet'!$AP$30","v":0},null,null,null,null,null,{"$f":"IF(ISERROR(SEARCH(\"*DOWN*\",EH69,1)),\"\",\"1 \")","v":""},null,"NZD-CAD",{"$f":"IF(ISERROR(SEARCH(\"*UP*\",EY69,1)),\"\",\"1\")","v":""},null,null,null,null,null,{"$f":"'Analysis Sheet'!$BR$30","v":0},{"$f":"'Analysis Sheet'!$BR$30","v":0},null,null,null,null,null,{"$f":"IF(ISERROR(SEARCH(\"*DOWN*\",EX69,1)),\"\",\"1 \")","v":""},null,{"$f":"IF(ISERROR(SEARCH(\"*UP*\",FO69,1)),\"\",\"1\")","v":""},null,null,null,null,null,"NZD-CAD",{"$f":"'Analysis Sheet'!$CT$30","v":0},{"$f":"'Analysis Sheet'!$CT$30","v":0},null,null,null,null,null,{"$f":"IF(ISERROR(SEARCH(\"*DOWN*\",FN69,1)),\"\",\"1 \")","v":""},null,"NZD-CAD",null,null,null,"NZD-CAD"]
[null,null,null,null,null,null,null,null,null,null,null,null,null,null,null,null,null,null,null,null,null,null,null,null,null,null,null,null,null,null,null,null,null,null,null,null,null,null,null,null,null,null,null,null,null,null,null,null,null,null,null,null,null,null,null,null,null,null,null,null,null,null,null,null,null,null,null,null,null,null,null,null,null,null,null,null,null,null,null,null,null,null,null,null,null,null,null,null,null,null,null,null,null,null,null,null,null,null,null,null,null,null,null,null,null,null,null,null,null,null,null,null,null,null,null,null,null,null,null,null,null,null,null,null,null,null,null,null,null,null,"GBP-NZD",{"$f":"IF(ISERROR(SEARCH(\"*down*\",EH70,1)),\"\",\"1\")","v":""},null,null,null,null,null,{"$f":"'Analysis Sheet'!$AP$27","v":0},{"$f":"'Analysis Sheet'!$AP$27","v":0},null,null,null,null,null,{"$f":"IF(ISERROR(SEARCH(\"*UP*\",EI70,1)),\"\",\"1 \")","v":""},null,"GBP-NZD",{"$f":"IF(ISERROR(SEARCH(\"*down*\",EX70,1)),\"\",\"1\")","v":""},null,null,null,null,null,{"$f":"'Analysis Sheet'!$BR$27","v":0},{"$f":"'Analysis Sheet'!$BR$27","v":0},null,null,null,null,null,{"$f":"IF(ISERROR(SEARCH(\"*UP*\",EY70,1)),\"\",\"1 \")","v":""},null,{"$f":"IF(ISERROR(SEARCH(\"*down*\",FN70,1)),\"\",\"1\")","v":""},null,null,null,null,null,"GBP-NZD",{"$f":"'Analysis Sheet'!$CT$27","v":0},{"$f":"'Analysis Sheet'!$CT$27","v":0},null,null,null,null,null,{"$f":"IF(ISERROR(SEARCH(\"*UP*\",FO70,1)),\"\",\"1 \")","v":""},null,"GBP-NZD",null,null,null,"GBP-NZD"]
[null,null,null,null,null,null,null,null,null,null,null,null,null,null,null,null,null,null,null,null,null,null,null,null,null,null,null,null,null,null,null,null,null,null,null,null,null,null,null,null,null,null,null,null,null,null,null,null,null,null,null,null,null,null,null,null,null,null,null,null,null,null,null,null,null,null,null,null,null,null,null,null,null,null,null,null,null,null,null,null,null,null,null,null,null,null,null,null,null,null,null,null,null,null,null,null,null,null,null,null,null,null,null,null,null,null,null,null,null,null,null,null,null,null,null,null,null,null,null,null,null,null,null,null,null,null,null,null,null,null,"AUD-NZD",{"$f":"IF(ISERROR(SEARCH(\"*down*\",EH71,1)),\"\",\"1\")","v":""},null,null,null,null,null,{"$f":"'Analysis Sheet'!$AP$29","v":0},{"$f":"'Analysis Sheet'!$AP$29","v":0},null,null,null,null,null,{"$f":"IF(ISERROR(SEARCH(\"*UP*\",EI71,1)),\"\",\"1 \")","v":""},null,"AUD-NZD",{"$f":"IF(ISERROR(SEARCH(\"*down*\",EX71,1)),\"\",\"1\")","v":""},null,null,null,null,null,{"$f":"'Analysis Sheet'!$BR$29","v":0},{"$f":"'Analysis Sheet'!$BR$29","v":0},null,null,null,null,null,{"$f":"IF(ISERROR(SEARCH(\"*UP*\",EY71,1)),\"\",\"1 \")","v":""},null,{"$f":"IF(ISERROR(SEARCH(\"*down*\",FN71,1)),\"\",\"1\")","v":""},null,null,null,null,null,"AUD-NZD",{"$f":"'Analysis Sheet'!$CT$29","v":0},{"$f":"'Analysis Sheet'!$CT$29","v":0},null,null,null,null,null,{"$f":"IF(ISERROR(SEARCH(\"*UP*\",FO71,1)),\"\",\"1 \")","v":""},null,"AUD-NZD",null,null,null,"AUD-NZD"]
[null,null,null,null,null,null,null,null,null,null,null,null,null,null,null,null,null,null,null,null,null,null,null,null,null,null,null,null,null,null,null,null,null,null,null,null,null,null,null,null,null,null,null,null,null,null,null,null,null,null,null,null,null,null,null,null,null,null,null,null,null,null,null,null,null,null,null,null,null,null,null,null,null,null,null,null,null,null,null,null,null,null,null,null,null,null,null,null,null,null,null,null,null,null,null,null,null,null,null,null,null,null,null,null,null,null,null,null,null,null,null,null,null,null,null,null,null,null,null,null,null,null,null,null,null,null,null,null,null,null,"EUR-NZD",{"$f":"IF(ISERROR(SEARCH(\"*down*\",EH72,1)),\"\",\"1\")","v":""},null,null,null,null,null,{"$f":"'Analysis Sheet'!$AP$18","v":0},{"$f":"'Analysis Sheet'!$AP$18","v":0},null,null,null,null,null,{"$f":"IF(ISERROR(SEARCH(\"*UP*\",EI72,1)),\"\",\"1 \")","v":""},null,"EUR-NZD",{"$f":"IF(ISERROR(SEARCH(\"*down*\",EX72,1)),\"\",\"1\")","v":""},null,null,null,null,null,{"$f":"'Analysis Sheet'!$BR$18","v":0},{"$f":"'Analysis Sheet'!$BR$18","v":0},null,null,null,null,null,{"$f":"IF(ISERROR(SEARCH(\"*UP*\",EY72,1)),\"\",\"1 \")","v":""},null,{"$f":"IF(ISERROR(SEARCH(\"*down*\",FN72,1)),\"\",\"1\")","v":""},null,null,null,null,null,"EUR-NZD",{"$f":"'Analysis Sheet'!$CT$18","v":0},{"$f":"'Analysis Sheet'!$CT$18","v":0},null,null,null,null,null,{"$f":"IF(ISERROR(SEARCH(\"*UP*\",FO72,1)),\"\",\"1 \")","v":""},null,"EUR-NZD",null,null,null,"EUR-NZD"]
[null,null,null,null,null,null,null,null,null,null,null,null,null,null,null,null,null,null,null,null,null,null,null,null,null,null,null,null,null,null,null,null,null,null,null,null,null,null,null,null,null,null,null,null,null,null,null,null,null,null,null,null,null,null,null,null,null,null,null,null,null,null,null,null,null,null,null,null,null,null,null,null,null,null,null,null,null,null,null,null,null,null,null,null,null,null,null,null,null,null,null,null,null,null,null,null,null,null,null,null,null,null,null,null,null,null,null,null,null,null,null,null,null,null,null,null,null,null,null,null,null,null,null,null,null,null,null,null,null,null,null,null,null,null,null,null,null,null,null,null,null,null,null,null,null,null,null,null,null,null,null,null,null,null,null,null,null,null,null,null,null,null,null,null,null,null,null,null,null,null,null,null,null,null,null,{"$f":"IF(FU73<=FG73,0,IF(FU73>FG73,1))","v":0},{"$f":"SUM(FU66:FU72)+COUNTIF(FU66:FU72,1)","v":0}]
[null,null,null,null,null,null,null,null,null,null,null,null,null,null,null,null,null,null,null,null,null,null,null,null,null,null,null,null,null,null,null,null,null,null,null,null,null,null,null,null,null,null,null,null,null,null,null,null,null,null,null,null,null,null,null,null,null,null,null,null,null,null,null,null,null,null,null,null,null,null,null,null,null,null,null,null,null,null,null,null,null,null,null,null,null,null,null,null,null,null,null,null,null,null,null,null,null,null,null,null,null,null,null,null,null,null,null,null,null,null,null,null,null,null,null,null,null,null,null,null,null,null,null,null,null,null,null,null,null,null,null,null,null,null,null,null,null,null,null,null,null,null,null,null,null,null,null,null,null,null,null,null,null,null,null,null,null,null,null,null,null,null,null,null,null,null,null,null,null,null,null,null,null,null,null,null,null,null,null,null,null,null,"Copyright MT2 Enterprises, llc. & Forexearlywarning.com"]
[]
[]
[]
[]
[]
[]
[null,null,null,null,null,null,null,null,null,null,null,null,null,null,null,null,null,null,null,null,null,null,null,null,null,null,null,null,null,null,null,null,null,null,null,null,null,null,null,null,null,"No Trend"]

{"sheet":"Instructions","index":1,"n_rows":19,"n_cols":12,"rows_kept":19,"cut":false,"hidden":false,"merged":[]}
[null,null,null,null,null,null,null,null,null,null,null,"Copyright MT2 Enterprises, llc"]
[]
["How to Use sheet:"]
[]
["This Sheet is designed to find Strength and Weakness in the forex Market for 8 individual currency groups using 28 currency pairs."]
[]
["For use with 5/12 exponential moving averages (Free Trend Indicators)"]
[]
[]
[]
["You will view each currency pair on the W1 (Week) D1 (daily) and H4 (4hour) Timeframes"]
[]
["Decide if the trend in the time frame you are viewing is UP, DOWN, or No Trend exist."]
[]
["Use the drop down box on the time frame to choose what fits best."]
[]
["Complete this process for all 28 pairs on the 3 timeframes."]
[]
["When complete, compare the results to the examples on the right of the sheet."]